Workbook

Sheet Manufacturers's Declaration
B2: Micro-Cogeneration Add-on Calculator | I2: Version: | J2: v 1.0
C4: Please fill out the blanks in all tables
B8: TABLE MD1: General description of the Add-on MCU | M8: User input data is in blue
B9: 1 | C9: Manufacturer's name | M9: Dark Red figures are taken from another cell/sheet
B10: 2 | C10: Brand name | M10: Red figures are calculated
B11: 3 | C11: Package name
B12: 4 | C12: Unique package identifiers
B13: 5 | C13: Prime mover: Software/Control package version
B14: 6 | C14: System Integration Package: Software/Control package version
B15: 7 | C15: Description of micro-cogeneration package
B16: 8 | C16: Prime mover type
B17: 9 | C17: Test fuel - Select from list | G17: 1 Mains Gas | H17: If special then specify : -
B18: 10 | C18: Condensing or Non-Condensing - Select from list | G18: Condensing
B20: TABLE MD2: Operating and test regimes
B21: 11 | C21: Select generic type, application and operating mode | E21: Generic type | F21: Test mode | G21: Target building | H21: Operation | I21: Space heating | J21: Standby | K21: DHW
G22: Types | H22: Mode | I22: Test regime | J22: Mode | K22: Only
E23: [Select] | F23: [Select] | G23: [Select] | H23: [Select]
E24: RegPK | F24: With Ref boiler | G24: Single family | H24: 1 Continuous | I24: =+'REF_DATA(V1.0)'!U41 -> 1 | J24: Yes | K24: =+IF($E$24="HeatPK","N/A",5) -> 5
B26: TABLE MD3: Electrical specification
B27: 12 | C27: Electrical specification | G27: Maximum | H27: Voltage | I27: Frequency | J27: AC/DC | K27: Electrical test
G28: Electrical Output | K28: Mode
G29: [kVA] | H29: [V] | I29: [Hz] | K29: [Select]
K30: 1
B32: TABLE MD4: Add-on MCU Manufacturer's declared performance data
B33: 13 | F33: Return temperature, TR | I33: Standby mode inputs and outputs
F34: 60oC | G34: 45oC | H34: 30oC
C35: Fuel energy consumption rate | E35: [kW] | I35: Power input | J35: [We]
C36: Thermal power output | E36: [kWt] | I36: Fuel energy input | J36: [W] | M36: About Table MD4: These declared results are not necessary, but can be used by the test house to make sense of their own results.
C37: Electrical power output | E37: [kWe] | I37: Power output | J37: [We]
C38: Gross electrical efficiency | E38: [%] | I38: Heat output | J38: [Wt]
C39: Gross thermal efficiency | E39: [%]
C40: Gross overall efficiency | E40: [%]
B42: TABLE MD5A: Specification of the reference secondary (boiler) to be tested | G42: not required in the case of DHWPK
C43: Heat Output power [kW]
C44: Maximum | D44: Minimum (if any)
B46: TABLE MD5B: Specification of the primary | G46: not required in the case of DHWPK
C47: SH output power [kW] (80/60°C)
C48: Maximum | D48: Minimum
B51: TABLE MD6: Space heating parameters | G51: not required in the case of DHWPK
B52: 15 | C52: Declared space heating full load (100% load factor) | J52: [kWT] | L52: (100% heat load could be the sum of the two heating system outputs or just the heat output of the largest heating system)
J53: [kWh/24h] | K53: =+K52*24 -> 0
C54: Central heating return temperature at full load i.e. 100% load factor | J54: [oC]
C55: Central heating flow temperature at full load i.e. 100% load factor | J55: [oC]
C56: Optional space heating partial load supplementary tests | G56: From 90% to 40% (regime, % load) | J56: Continuous | K56: enter | L56: don't write a percentage sign (50,60,70,80,90% tests are impossible in a bimodal regime)
J57: Continuous | K57: enter | L57: no percentage sign (70,80,90% tests are impossible for uni-modal regime)
G58: 20% part load (regime, % load) | J58: Continuous | K58: enter | L58: no percentage sign
B60: TABLE MD7: HW heating performance testing parameters | G60: not required in the case of HEAT-PK
B61: 16 | C61: DHW supply pressure requirements and flow rate for individual hot water tapping No.# and hot water vessel capacity (See PAS67: 2013 for details) | G61: Pressure [bar] | I61: External HW Vessel | J61: HW vessel | K61: HW vessel
G62: Maximum | H62: Minimum | I62: Select | J62: Min Capacity (L) | K62: Max Capacity (L)
I63: No
C64: Select hot water tapping cycles | E64: HW heating | F64: Tapping | G64: HW energy content | I64: HW Volume | J64: TC Flow rate | K64: Test flow rate
E65: Test No | F65: Cycle | I65: at 60oC | J65: Range | K65: 0 = From table
F66: [Select] | G66: [MJ/day] | H66: [kWh/day] | I66: [L] | J66: [L/min] | K66: > 0: Value
E67: 1 | F67: 2 - M | G67: =+'REF_DATA(V1.0)'!C69 -> 21.042 | H67: =+'REF_DATA(V1.0)'!D69 -> 5.845 | I67: =+'REF_DATA(V1.0)'!E69 -> 100 | J67: =+'REF_DATA(V1.0)'!F69 -> 3 - 6 | K67: 0
E68: 2 | F68: 3 - L | G68: =+'REF_DATA(V1.0)'!H69 -> 41.958 | H68: =+'REF_DATA(V1.0)'!I69 -> 11.655 | I68: =+'REF_DATA(V1.0)'!J69 -> 200 | J68: =+'REF_DATA(V1.0)'!K69 -> 3 - 10 | K68: 0
E69: 3 | F69: 4 - XL | G69: =+'REF_DATA(V1.0)'!M69 -> 68.652 | H69: =+'REF_DATA(V1.0)'!N69 -> 19.07 | I69: =+'REF_DATA(V1.0)'!O69 -> 327 | J69: =+'REF_DATA(V1.0)'!P69 -> 3 - 10 | K69: 0
E70: 8 - Special | F70: Specify the values
B72: TABLE MD8: Circulator in the Add-on MCU
B73: 17 | C73: Presence of circulators in the test package | I73: Present | J73: Disconnected | K73: Nominal rating
I74: [Yes or No] | J74: for test (Y or N) | K74: [W]
G75: Prime mover circuit | I75: Yes | J75: No
G76: Hydraulics (Heating system) | I76: Yes | J76: No
G77: Reference boiler circuit | I77: Yes | J77: No
B79: Comments: Declaration is the same as in the latest version of the PAS67.
B81: Signed | H81: Date
B82: Name | H82: Position
B83: Name of manufacturer

Sheet REF_DATA(V1.0)
B1: Micro-Cogeneration Add-on Calculator | I1: Version: | J1: v 1.0
B3: Please only change data to match new current SAP values.
B7: Table R1: Electrical test mode
B9: Synchronous | C9: 1
B10: Island Mode | C10: 2
B12: Result | C12: =+'Manufacturers''s Declaration'!K30 -> 1
B14: Table R2: Fuel types and properties
B15: Fuel type | D15: Emissions | E15: Unit price | F15: Standing charge | G15: Primary | I15: Current values are from the SAP2012.
D16: [kgCO2/KWh] | E16: [p/kWh] | F16: [£/y] | G16: Energy factor | I16: These values need updating with those values from the latest version of the SAP.
B17: 1 Mains Gas | D17: 0.216 | E17: 3.48 | F17: 120 | G17: 1.22
B18: 2 LPG | D18: 0.241 | E18: 10.3 | F18: 0 | G18: 1.09
B19: 3 Heating oil | D19: 0.298 | E19: 5.44 | F19: 0 | G19: 1.1
B20: 4 Special
B21: 5 Import electricity | D21: 0.519 | E21: 13.19 | F21: 54 | G21: 3.07
B22: 6 Export electricity | D22: 0.519 | E22: 13.19 | F22: 0 | G22: 3.07
B23: =+'Manufacturers''s Declaration'!G17 -> 1 Mains Gas | D23: =+LOOKUP($B23,$B17:$B20,D17:D20) -> 0.216 | E23: =+LOOKUP($B23,$B17:$B20,E17:E20) -> 3.48 | F23: =+LOOKUP($B23,$B17:$B20,F17:F20) -> 120 | G23: =+LOOKUP($B23,$B17:$B20,G17:G20) -> 1.22
B25: Table R3: Appliance type
B27: Condensing
B28: Non-Condensing
B30: =+'Manufacturers''s Declaration'!G18 -> Condensing
B32: Table R4: Category, Application and operating regimes
K33: Load factor (%) | U33: Test
B34: Category | C34: Test mode | E34: Target building types | G34: Operation mode | H34: On hours | I34: Add-on MCU On times | K34: 100 | L34: 90 | M34: 80 | N34: 70 | O34: 60 | P34: 50 | Q34: 40 | R34: 30 | S34: 20 | T34: 10 | U34: Regime
B35: RegPK | C35: With Ref boiler | E35: Single family | G35: 1 Continuous | H35: 24 | I35: 24h | K35: Continuous | L35: Continuous | M35: Continuous | N35: Continuous | O35: Continuous | P35: Continuous | Q35: Continuous | R35: Continuous | S35: Continuous | T35: Continuous | U35: 1
B36: HeatPK | E36: Apartment blocks | G36: 2 Uni-modal | H36: 16 | I36: 07:00 - 23:00 | K36: Continuous | L36: N/A | M36: N/A | N36: N/A | O36: Uni-modal | P36: Uni-modal | Q36: Uni-modal | R36: Uni-modal | S36: Uni-modal | T36: Uni-modal | U36: 2
B37: CombiPK | E37: Commercial | G37: 3 Bi-modal | H37: 11 | I37: 06:00 - 09:00 & 15:00 - 2300 | K37: Continuous | L37: N/A | M37: N/A | N37: N/A | O37: N/A | P37: N/A | Q37: Bi-modal | R37: Bi-modal | S37: Bi-modal | T37: Bi-modal | U37: 3
B38: DHWPK | G38: 4 Uni + Bi-modal | I38: 07:00 - 23:00 & 06:00 - 09:00 & 15:00 - 2300 | K38: Continuous | L38: Continuous | M38: Continuous | N38: Continuous | O38: Uni-modal | P38: Uni-modal | Q38: N/A | R38: Uni-modal | S38: N/A | T38: Bi-modal | U38: 4
B40: =+'Manufacturers''s Declaration'!E24 -> RegPK | C40: =+'Manufacturers''s Declaration'!F24 -> With Ref boiler | E40: =+'Manufacturers''s Declaration'!G24 -> Single family | G40: =+'Manufacturers''s Declaration'!H24 -> 1 Continuous | I40: =+LOOKUP(G40,G35:G38,I35:I38) -> 24h | K40: =+LOOKUP($G40,$G35:$G38,K35:K38) -> Continuous | L40: =+LOOKUP($G40,$G35:$G38,L35:L38) -> Continuous | M40: =+LOOKUP($G40,$G35:$G38,M35:M38) -> Continuous | N40: Continuous | O40: Continuous | P40: Continuous | Q40: Continuous | R40: Continuous | S40: Continuous | T40: Continuous | U40: =+LOOKUP($G40,$G35:$G38,U35:U38) -> 1
I41: =+IF($B$40="DHWPK","N/A",I40) -> 24h | K41: =+IF($B$40="DHWPK","N/A",K40) -> Continuous | L41: Continuous | M41: Continuous | N41: Continuous | O41: Continuous | P41: Continuous | Q41: Continuous | R41: Continuous | S41: Continuous | T41: Continuous | U41: 1
I44: Hours | J44: on | K44: =+IF(K40="Continuous",24,IF(K40="Uni-modal",16,IF(K40="Bi-modal",11,0))) -> 24 | L44: =+IF(L40="Continuous",24,IF(L40="Uni-modal",16,IF(L40="Bi-modal",11,0))) -> 24 | M44: =+IF(M41="Continuous",24,IF(M41="Uni-modal",16,IF(M41="Bi-modal",11,0))) -> 24 | N44: =+IF(N41="Continuous",24,IF(N41="Uni-modal",16,IF(N41="Bi-modal",11,0))) -> 24 | O44: 24 | P44: 24 | Q44: 24 | R44: 24 | S44: 24 | T44: 24
B47: Table R4A: Load factor and Heating on period
B48: Load factor | C48: [%] | D48: 0 | E48: 10 | F48: =+E48+10 -> 20 | G48: =+F48+10 -> 30 | H48: 40 | I48: 50 | J48: 60 | K48: 70 | L48: 80 | M48: 90 | N48: 100
B49: Heating on period | C49: [h] | D49: 0 | E49: =+T44 -> 24 | F49: =+S44 -> 24 | G49: =+R44 -> 24 | H49: =+Q44 -> 24 | I49: =+P44 -> 24 | J49: =+O44 -> 24 | K49: =+N44 -> 24 | L49: =+M44 -> 24 | M49: =+L44 -> 24 | N49: =+K44 -> 24
D50: *special case
D51: inserted for calculations
B52: Table R5
B53: Yes
B54: No
B57: Table R6: Hot water tapping cycle data
B58: Tapping | C58: HW energy content | E58: HW Volume | F58: Flow rates | G58: Tapping | H58: HW energy content | J58: HW Volume | K58: Flow rates | L58: Tapping | M58: HW energy content | O58: HW Volume | P58: Flow rates
B59: Cycle No | C59: [MJ/24h] | D59: [kWh/24h] | E59: at 60oC [L] | F59: [L/min] | G59: Cycle No | H59: [MJ/day] | I59: [kWh/day] | J59: at 60oC [L] | K59: [L/min] | L59: Cycle No | M59: [kWh] | N59: [MJ] | O59: at 60oC [L] | P59: [L/min]
B60: 0 | C60: 0 | D60: 0 | E60: 0 | F60: 0 | G60: 0 | H60: 0 | I60: 0 | J60: 0 | K60: 0 | L60: 0 | M60: 0 | N60: 0 | O60: 0 | P60: 0
B61: 1 - S | C61: 7.56 | D61: =+C61/3.6 -> 2.1 | E61: 36 | F61: 3 - 6 | G61: 1 - S | H61: 7.56 | I61: =+H61/3.6 -> 2.1 | J61: 36 | K61: 3 - 6 | L61: 1 - S | M61: 7.56 | N61: =+M61/3.6 -> 2.1 | O61: 36 | P61: 3 - 6 | R61: This tapping cycle data needs to be kept up to date in line with any changes.
B62: 2 - M | C62: 21.042 | D62: =+C62/3.6 -> 5.845 | E62: 100 | F62: 3 - 6 | G62: 2 - M | H62: 21.042 | I62: =+H62/3.6 -> 5.845 | J62: 100 | K62: 3 - 6 | L62: 2 - M | M62: 21.042 | N62: =+M62/3.6 -> 5.845 | O62: 100 | P62: 3 - 6
B63: 3 - L | C63: 41.958 | D63: 11.655 | E63: 200 | F63: 3 - 10 | G63: 3 - L | H63: 41.958 | I63: 11.655 | J63: 200 | K63: 3 - 10 | L63: 3 - L | M63: 41.958 | N63: 11.655 | O63: 200 | P63: 3 - 10
B64: 4 - XL | C64: 68.652 | D64: 19.07 | E64: 327 | F64: 3 - 10 | G64: 4 - XL | H64: 68.652 | I64: 19.07 | J64: 327 | K64: 3 - 10 | L64: 4 - XL | M64: 68.652 | N64: 19.07 | O64: 327 | P64: 3 - 10
B65: 5 - XXL | C65: =+D65*3.6 -> 88.38 | D65: 24.55 | E65: 420 | F65: 3 - 16 | G65: 5 - XXL | H65: =+I65*3.6 -> 88.38 | I65: 24.55 | J65: 420 | K65: 3 - 16 | L65: 5 - XXL | M65: =+N65*3.6 -> 88.38 | N65: 24.55 | O65: 420 | P65: 3 - 16
B66: 6 - 3XL | C66: =+D66*3.6 -> 161.136 | D66: 44.76 | E66: 766 | F66: 24 - 48 | G66: 6 - 3XL | H66: =+I66*3.6 -> 161.136 | I66: 44.76 | J66: 766 | K66: 24 - 48 | L66: 6 - 3XL | M66: =+N66*3.6 -> 161.136 | N66: 44.76 | O66: 766 | P66: 24 - 48
B67: 7 - 4XL | C67: 336.672 | D67: 93.52 | E67: 1600 | F67: 48 - 96 | G67: 7 - 4XL | H67: 336.672 | I67: 93.52 | J67: 1600 | K67: 48 - 96 | L67: 7 - 4XL | M67: 336.672 | N67: 93.52 | O67: 1600 | P67: 48 - 96
B68: 8 - Special | C68: =+'Manufacturers''s Declaration'!G70 -> 0 | D68: =+C68*3.6 -> 0 | E68: =+E67*C67/C68 ->  | F68: =+'Manufacturers''s Declaration'!K70 -> 0 | G68: 8 - Special | H68: =+C68 -> 0 | I68: =+D68 -> 0 | K68: 0 | L68: 8 - Special | M68: =+C68 -> 0 | N68: =+D68 -> 0 | P68: 0
B69: =+'Manufacturers''s Declaration'!F67 -> 2 - M | C69: =+LOOKUP($B69,$B60:$B68,C60:C68) -> 21.042 | D69: =+LOOKUP($B69,$B60:$B68,D60:D68) -> 5.845 | E69: 100 | F69: 3 - 6 | G69: =+'Manufacturers''s Declaration'!F68 -> 3 - L | H69: =+LOOKUP($G69,$G60:$G68,H60:H68) -> 41.958 | I69: =+LOOKUP($G69,$G60:$G68,I60:I68) -> 11.655 | J69: 200 | K69: 3 - 10 | L69: =+'Manufacturers''s Declaration'!F69 -> 4 - XL | M69: =+LOOKUP($L69,$L60:$L68,M60:M68) -> 68.652 | N69: =+LOOKUP($L69,$L60:$L68,N60:N68) -> 19.07 | O69: 327 | P69: 3 - 10

Sheet Reference Test Data
B2: =+'Manufacturers''s Declaration'!B2 -> Micro-Cogeneration Add-on Calculator | E2: Version: | F2: =+'Manufacturers''s Declaration'!J2 -> v 1.0 | H2: Add-on MCU PERFORMANCE DATA WITH REFERENCE BOILER
B6: TABLE RT_01: FUEL PARAMETERS
E8: Fuel | F8: Emissions | G8: Price | H8: Standing charge | I8: Primary
F9: [kgCO2/kWh] | G9: [p/kWh] | H9: [£/y] | I9: Energy factor
B10: Add-on MCU and reference test boiler | E10: =+'Manufacturers''s Declaration'!G17 -> 1 Mains Gas | F10: =+'REF_DATA(V1.0)'!D23 -> 0.216 | G10: =+'REF_DATA(V1.0)'!E23 -> 3.48 | H10: =+'REF_DATA(V1.0)'!F23 -> 120 | I10: =+'REF_DATA(V1.0)'!G23 -> 1.22
B11: Import power | E11: Electricity | F11: =+'REF_DATA(V1.0)'!D21 -> 0.519 | G11: =+'REF_DATA(V1.0)'!E21 -> 13.19 | H11: =+'REF_DATA(V1.0)'!F21 -> 54 | I11: =+'REF_DATA(V1.0)'!G21 -> 3.07
B12: Export power | E12: Electricity | F12: =+'REF_DATA(V1.0)'!D22 -> 0.519 | G12: =+'REF_DATA(V1.0)'!E22 -> 13.19 | H12: =+'REF_DATA(V1.0)'!F22 -> 0 | I12: =+'REF_DATA(V1.0)'!G22 -> 3.07
B15: TABLE RT_02: REFERENCE BOILER DATA | G15: Add-on MCU type: | I15: =+'Manufacturers''s Declaration'!$E$24 -> RegPK | J15: =+'Manufacturers''s Declaration'!$F$24 -> With Ref boiler
B17: Make & Model | D17: SH output power at 70 - 80oC [kW] | F17: SAP seasonal efficiency [%] | I17: Electrical power consumption [W] | K17: Temperature rise [oC] | M17: DHW tank
D18: Maximum | E18: Minimum | F18: Annual | H18: DHW | I18: Firing mode | J18: Standby mode | K18: Max power | L18: Min power | M18: Size (L) | N18: Heat Loss at 45∆T(W)
D19: =+'Manufacturers''s Declaration'!C45 -> 0 | E19: =+'Manufacturers''s Declaration'!D45 -> 0
B26: TABLE RT_03: Add-on MCU MANUFACTURER'S PERFORMANCE DATA | G26: Add-on MCU type: | I26: =+'Manufacturers''s Declaration'!$E$24 -> RegPK | J26: =+'Manufacturers''s Declaration'!$F$24 -> With Ref boiler
E28: Return temperature, TR | H28: Standby mode inputs and outputs
E29: 60oC | F29: 45oC | G29: 30oC
B30: Fuel energy consumption rate | D30: [kW] | E30: =+'Manufacturers''s Declaration'!F35 -> 0 | F30: =+'Manufacturers''s Declaration'!G35 -> 0 | G30: =+'Manufacturers''s Declaration'!H35 -> 0 | H30: Power input | I30: [We] | J30: =+'Manufacturers''s Declaration'!K35 -> 0
B31: Thermal power output | D31: [kWt] | E31: =+'Manufacturers''s Declaration'!F36 -> 0 | F31: =+'Manufacturers''s Declaration'!G36 -> 0 | G31: =+'Manufacturers''s Declaration'!H36 -> 0 | H31: Fuel energy input | I31: [W] | J31: =+'Manufacturers''s Declaration'!K36 -> 0
B32: Electrical power output | D32: [kWe] | E32: =+'Manufacturers''s Declaration'!F37 -> 0 | F32: =+'Manufacturers''s Declaration'!G37 -> 0 | G32: =+'Manufacturers''s Declaration'!H37 -> 0 | H32: Power output | I32: [We] | J32: =+'Manufacturers''s Declaration'!K37 -> 0
B33: Gross electrical efficiency | D33: [%] | E33: =+'Manufacturers''s Declaration'!F38 -> 0 | F33: =+'Manufacturers''s Declaration'!G38 -> 0 | G33: =+'Manufacturers''s Declaration'!H38 -> 0 | H33: Heat output | I33: [Wt] | J33: =+'Manufacturers''s Declaration'!K38 -> 0
B34: Gross thermal efficiency | D34: [%] | E34: =+'Manufacturers''s Declaration'!F39 -> 0 | F34: =+'Manufacturers''s Declaration'!G39 -> 0 | G34: =+'Manufacturers''s Declaration'!H39 -> 0
B35: Gross overall efficiency | D35: [%] | E35: =+'Manufacturers''s Declaration'!F40 -> 0 | F35: =+'Manufacturers''s Declaration'!G40 -> 0 | G35: =+'Manufacturers''s Declaration'!H40 -> 0
B38: TABLE RT_04: OPERATING AND TEST REGIMES FOR SPACE HEATING PERFORMANCE TESTS | M38: Add-on MCU type: | O38: =+'Manufacturers''s Declaration'!$E$24 -> RegPK | P38: =+'Manufacturers''s Declaration'!$F$24 -> With Ref boiler
B40: Heating on times | F40: Operation and test regimes for standard heating performance tests | K40: (OPTIONAL) Operation and test regimes for optional part load heating performance tests
E41: Space heating | F41: Heating load factor (%) | I41: Standby | J41: DHW | K41: Heating load factor (%)
E42: Test regime | F42: 100 | G42: 30 | H42: 10 | I42: Mode | J42: Only | K42: 20 | L42: 40 | M42: 50 | N42: 60 | O42: 70 | P42: 80 | Q42: 90 | R42: 0
B43: =+'REF_DATA(V1.0)'!I41 -> 24h | E43: =+'REF_DATA(V1.0)'!U41 -> 1 | F43: =+'REF_DATA(V1.0)'!K41 -> Continuous | G43: =+'REF_DATA(V1.0)'!R41 -> Continuous | H43: =+'REF_DATA(V1.0)'!T41 -> Continuous | I43: Yes | J43: =+IF('Manufacturers''s Declaration'!$E$24="HeatPK","N/A",5) -> 5 | K43: =+'REF_DATA(V1.0)'!S41 -> Continuous | L43: =+'REF_DATA(V1.0)'!Q41 -> Continuous | M43: =+'REF_DATA(V1.0)'!P41 -> Continuous | N43: =+'REF_DATA(V1.0)'!O41 -> Continuous | O43: =+'REF_DATA(V1.0)'!N41 -> Continuous | P43: =+'REF_DATA(V1.0)'!M41 -> Continuous | Q43: =+'REF_DATA(V1.0)'!L41 -> Continuous | R43: N/A
B44: Heating system parameters
B45: Minimum Heating return temperature | E45: [oC] | F45: =+'Manufacturers''s Declaration'!$K54 -> 0 | G45: =+'Manufacturers''s Declaration'!$K54 -> 0 | H45: =+'Manufacturers''s Declaration'!$K54 -> 0 | K45: =+'Manufacturers''s Declaration'!$K54 -> 0 | L45: =+$F$45+((($F45-$G45)/($F$42-$G$42))*(L42-$F$42)) -> 0 | M45: 0 | N45: 0 | O45: 0 | P45: 0 | Q45: 0 | R45: 0
B46: Minimum Heating flow temperature | E46: [oC] | F46: =+'Manufacturers''s Declaration'!K55 -> 0 | G46: =+IF((($F46-$F45)*G42/$F$42)<5,(G45+5),(G45+(($F46-$F45)*G42/$F$42))) -> 5 | H46: =+IF((($F46-$F45)*H42/$F$42)<5,(H45+5),(H45+(($F46-$F45)*H42/$F$42))) -> 5 | K46: =+IF((($F46-$F45)*K42/$F$42)<5,(K45+5),(K45+(($F46-$F45)*K42/$F$42))) -> 5 | L46: 5 | M46: 5 | N46: 5 | O46: 5 | P46: 5 | Q46: 5 | R46: 0
B47: Space heating load | E47: [kWh/24h] | F47: =+'Manufacturers''s Declaration'!K53 -> 0 | G47: =+$F47*G42/$F42 -> 0 | H47: =+$F47*H42/$F42 -> 0 | K47: =+$F47*K42/$F42 -> 0 | L47: =+$F47*L42/$F42 -> 0 | M47: 0 | N47: 0 | O47: 0 | P47: 0 | Q47: 0 | R47: 0
E48: [MJ/24h] | F48: =+F47*3.6 -> 0 | G48: =+G47*3.6 -> 0 | H48: 0 | K48: =+K47*3.6 -> 0 | L48: 0 | M48: 0 | N48: 0 | O48: 0 | P48: 0 | Q48: 0 | R48: 0
B51: TABLE RT_05: SPACE HEATING PERFORMANCE TARGET TEST AND MEASURED PARAMETERS | H51: Add-on MCU types: | J51: RegPK, HeatPK and CombiPK
B53: TABLE RT_05A: Target parameters specified by the manufacturer | H53: TABLE RT_05B: Laboratory measurements of the reference test system | M53: Add-on MCU type: | O53: =+'Manufacturers''s Declaration'!E24 -> RegPK | P53: =+'Manufacturers''s Declaration'!F24 -> With Ref boiler | AJ53: TABLE RT_05C: Comparative gas boiler system
B54: Load factor | C54: Heating system | D54: Heating system | E54: Heating load | F54: SH Return | G54: SH Flow | H54: Fuel energy consumption | K54: Average fuel | L54: Space heating energy supplied | O54: Space heating temperatures | Q54: Electric power consumption | T54: Power produced | U54: Flue losses (Gross basis) | W54: Case losses | Y54: Change in energy level | AA54: Energy balance | AC54: Add-on MCU | AD54: Efficiency of reference test package | AG54: Emissions | AJ54: Energy consumption | AL54: Emissions
C55: Operating mode | D55: Operating regime | F55: Temperature | G55: Temperature | H55: Add-on MCU | I55: Reference Boiler | J55: Total | K55: Calorific value | L55: Add-on MCU | M55: Reference Boiler | N55: Total | O55: Average return | P55: Average flow | Q55: Add-on MCU | R55: Ref Boiler | S55: Total | T55: Add-on MCU | U55: Add-on MCU | V55: Ref Boiler | W55: Add-on MCU | X55: Ref Boiler | Y55: Add-on MCU | Z55: Ref Boiler | AA55: By Add-on MCU | AB55: Ref Boiler | AC55: On Hours | AD55: Thermal | AE55: Power (Electric) | AF55: Overall | AG55: Fuel | AH55: Electricity | AI55: Net | AJ55: Fuel | AK55: Electricity | AL55: Fuel | AM55: Electricity | AN55: Total
B56: LF | E56: QSH_(LF) | F56: TSHR | G56: TSHF | H56: QF(LF)-AMCP | I56: QF(LF)-RB | J56: QF(LF)_TOT | L56: QSH(LF)-AMCP | M56: QSH(LF)-RB | N56: QSH(LF)_TOT | O56: TSH_AR(LF) | P56: TSH_AF(LF) | Q56: QPIN-AMCP(LF) | R56: QPIN-RB(LF) | S56: QPIN-TOT(LF) | T56: QPOUT-AMCP(LF) | U56: QFL_AMCP(LF) | V56: QFL_RB(LF) | W56: QCL_AMCP(LF) | X56: QCL_RB(LF) | Y56: QΔAMCP(LF) | Z56: QΔRB(LF) | AA56: QBAL_AMCP(LF) | AB56: QBAL_RB(LF) | AD56: ƞTH_RS(LF) | AE56: ƞEL_RS(LF) | AF56: ƞTOT_RS(LF) | AG56: CO2FUEL(LF) | AH56: CO2ELEC(LF) | AI56: CO2NET(LF) | AJ56: QF(LF)-GS | AK56: QPIN-GS(LF) | AL56: CO2FUEL-GS(LF) | AM56: CO2ELEC-GS(LF) | AN56: CO2NET-GS(LF)
B57: [%] | C57: [ - ] | D57: [ - ] | E57: [MJ/24h] | F57: [oC] | G57: [oC] | H57: [MJ/24h] | I57: [MJ/24h] | J57: [MJ/24h] | K57: [MJ/m3] | L57: [MJ/24h] | M57: [MJ/24h] | N57: [MJ/24h] | O57: [oC] | P57: [oC] | Q57: [MJ/24h] | R57: [MJ/24h] | S57: [MJ/24h] | T57: [MJ/24h] | U57: [MJ/24h] | V57: [MJ/24h] | W57: [MJ/24h] | X57: [MJ/24h] | Y57: [MJ/24h] | Z57: [MJ/24h] | AA57: [MJ] | AB57: [MJ] | AC57: [h] | AD57: [%] | AE57: [%] | AF57: [%] | AG57: [kgCO2/24h] | AH57: [kgCO2/24h] | AI57: [kgCO2/24h] | AJ57: [MJ/24h] | AL57: [kgCO2/24h] | AM57: [kgCO2/24h] | AN57: [kgCO2/24h]
B58: 100 | C58: =+F43 -> Continuous | D58: =+E43 -> 1 | E58: =+F47*3.6 -> 0 | F58: =+F45 -> 0 | G58: =+F46 -> 0 | J58: =+H58+I58 -> 0 | N58: =+L58+M58 -> 0 | S58: =+Q58+R58 -> 0 | AD58: =+N58*100/J58 ->  | AE58: =+(T58-S58)*100/J58 ->  | AF58: =+AD58+AE58 ->  | AG58: =+(J58/3.6)*$F$10 -> 0 | AH58: =+(S58/3.6)*F$11-(T58/3.6)*F$12 -> 0 | AI58: =+AG58+AH58 -> 0 | AJ58: =+N58*100/$F$19 ->  | AK58: =+R58 -> 0 | AL58: =+(AJ58/3.6)*$F$10 ->  | AM58: =+(AK58/3.6)*$F$11 -> 0 | AN58: =+AL58+AM58 -> 
B59: =+'Manufacturers''s Declaration'!K56 -> enter | C59: =+LOOKUP(B59,K$42:R$42,K$43:R$43) ->  | D59: =+IF(B59>0,E$43,"N/A") -> 1 | E59: =+IF(B59<>"None",((E$58/B$58)*B59),0) ->  | F59: =+LOOKUP($B59,$K$42:$Q$42,$K$45:$Q$45) ->  | G59: =+LOOKUP($B59,$K$42:$Q$42,$K$46:$Q$46) ->  | J59: =+H59+I59 -> 0 | N59: =+L59+M59 -> 0 | S59: =+Q59+R59 -> 0 | AD59: =+N59*100/J59 ->  | AE59: =+(T59-S59)*100/J59 ->  | AF59: =+AD59+AE59 ->  | AG59: =+(J59/3.6)*$F$10 -> 0 | AH59: =+(S59/3.6)*F$11-(T59/3.6)*F$12 -> 0 | AI59: =+AG59+AH59 -> 0 | AJ59: =+N59*100/$F$19 ->  | AK59: =+R59 -> 0 | AL59: =+(AJ59/3.6)*$F$10 ->  | AM59: =+(AK59/3.6)*$F$11 -> 0 | AN59: =+AL59+AM59 -> 
B60: =+'Manufacturers''s Declaration'!K57 -> enter | C60: =+LOOKUP(B60,K$42:R$42,K$43:R$43) ->  | D60: =+IF(B60>0,E$43,"N/A") -> 1 | E60: =+IF(B60<>"None",((E$58/B$58)*B60),0) ->  | F60: =+LOOKUP($B60,$K$42:$Q$42,$K$45:$Q$45) ->  | G60: =+LOOKUP($B60,$K$42:$Q$42,$K$46:$Q$46) ->  | J60: 0 | N60: 0 | S60: 0 | AD60: =+N60*100/J60 ->  | AE60: =+(T60-S60)*100/J60 ->  | AF60: =+AD60+AE60 ->  | AG60: 0 | AH60: 0 | AI60: 0 | AK60: 0 | AM60: 0
B61: 30 | C61: =+G43 -> Continuous | D61: =+E43 -> 1 | E61: =+G47*3.6 -> 0 | F61: =+G45 -> 0 | G61: =+G46 -> 5 | J61: 0 | N61: 0 | S61: 0 | AD61: =+N61*100/J61 ->  | AE61: =+(T61-S61)*100/J61 ->  | AF61: =+AD61+AE61 ->  | AG61: 0 | AH61: 0 | AI61: 0 | AK61: 0 | AM61: 0
B62: =+'Manufacturers''s Declaration'!K58 -> enter | C62: =+LOOKUP(B62,K$42:R$42,K$43:R$43) ->  | D62: =+IF(B62>0,E$43,"N/A") -> 1 | E62: =+IF(B62<>"None",((E$58/B$58)*B62),0) ->  | F62: =+LOOKUP($B62,$K$42:$Q$42,$K$45:$Q$45) ->  | G62: =+LOOKUP($B62,$K$42:$Q$42,$K$46:$Q$46) ->  | J62: 0 | N62: 0 | S62: 0 | AG62: 0 | AH62: 0 | AI62: 0 | AK62: 0 | AM62: 0
B63: 10 | C63: =+H43 -> Continuous | D63: =+E43 -> 1 | E63: =+H47*3.6 -> 0 | F63: =+H45 -> 0 | G63: =+H46 -> 5 | J63: 0 | N63: 0 | S63: 0 | AD63: =+N63*100/J63 ->  | AE63: =+(T63-S63)*100/J63 ->  | AF63: =+AD63+AE63 ->  | AG63: 0 | AH63: 0 | AI63: 0 | AK63: 0 | AM63: 0
B66: TABLE RT_06: STANDBY PERFORMANCE MEASUREMENTS OF Add-on MCU REFERENCE TEST SYSTEM | H66: Add-on MCU types: | J66: RegPK, HeatPK, CombiPK and DHWPK
B68: TABLE RT_06A: Target parameters specified by the manufacturer | H68: TABLE RT_06B: Laboratory measurements of the reference test system | M68: Add-on MCU type: | O68: =+'Manufacturers''s Declaration'!E24 -> RegPK | P68: =+'Manufacturers''s Declaration'!F24 -> With Ref boiler | AJ68: TABLE RT_05C: Comparative gas boiler system
B69: Load factor | C69: Heating system | D69: Heating system | E69: Heating load | F69: SH Return | G69: SH Flow | H69: Fuel energy consumption | K69: Average fuel | L69: Space heating energy supplied | O69: Space heating temperatures | Q69: Electric power consumption | T69: Power produced | U69: Flue losses (Gross basis) | W69: Case losses | Y69: Change in energy level | AA69: Energy balance | AC69: Add-on MCU | AD69: Efficiency of reference test package | AG69: Emissions | AJ69: Energy consumption | AL69: Emissions
C70: Operating mode | D70: Operating regime | F70: Temperature | G70: Temperature | H70: Add-on MCU | I70: Reference Boiler | J70: Total | K70: Calorific value | L70: Add-on MCU | M70: Reference Boiler | N70: Total | O70: Average return | P70: Average flow | Q70: Add-on MCU | R70: Ref Boiler | S70: Total | T70: Add-on MCU | U70: Add-on MCU | V70: Ref Boiler | W70: Add-on MCU | X70: Ref Boiler | Y70: Add-on MCU | Z70: Ref Boiler | AA70: By Add-on MCU | AB70: Ref Boiler | AC70: On Hours | AD70: Thermal | AE70: Power (Electric) | AF70: Overall | AG70: Fuel | AH70: Electricity | AI70: Net | AJ70: Fuel | AK70: Electricity | AL70: Fuel | AM70: Electricity | AN70: Total
B71: LF | E71: QSH_(LF) | F71: TSHR | G71: TSHF | H71: QF(LF)-AMCP | I71: QF(LF)-RB | J71: QF(LF)_TOT | L71: QSH(LF)-AMCP | M71: QSH(LF)-RB | N71: QSH(LF)_TOT | O71: TSH_AR(LF) | P71: TSH_AF(LF) | Q71: QPIN-AMCP(LF) | R71: QPIN-RB(LF) | S71: QPIN-TOT(LF) | T71: QPOUT-AMCP(LF) | U71: QFL_AMCP(LF) | V71: QFL_RB(LF) | W71: QCL_AMCP(LF) | X71: QCL_RB(LF) | Y71: QΔAMCP(LF) | Z71: QΔRB(LF) | AA71: QBAL_AMCP(LF) | AB71: QBAL_RB(LF) | AD71: ƞTH_RS(LF) | AE71: ƞEL_RS(LF) | AF71: ƞTOT_RS(LF) | AG71: CO2FUEL(LF) | AH71: CO2ELEC(LF) | AI71: CO2NET(LF) | AJ71: QF(LF)-GS | AK71: QPIN-GS(LF) | AL71: CO2FUEL-GS(LF) | AM71: CO2ELEC-GS(LF) | AN71: CO2NET-GS(LF)
B72: [%] | C72: [ - ] | D72: [ - ] | E72: [MJ/24h] | F72: [oC] | G72: [oC] | H72: [MJ/24h] | I72: [MJ/24h] | J72: [MJ/24h] | K72: [MJ/m3] | L72: [MJ/24h] | M72: [MJ/24h] | N72: [MJ/24h] | O72: [oC] | P72: [oC] | Q72: [MJ/24h] | R72: [MJ/24h] | S72: [MJ/24h] | T72: [MJ/24h] | U72: [MJ/24h] | V72: [MJ/24h] | W72: [MJ/24h] | X72: [MJ/24h] | Y72: [MJ/24h] | Z72: [MJ/24h] | AA72: [MJ] | AB72: [MJ] | AC72: [h] | AD72: [%] | AE72: [%] | AF72: [%] | AG72: [kgCO2/24h] | AH72: [kgCO2/24h] | AI72: [kgCO2/24h] | AJ72: [MJ/24h] | AL72: [kgCO2/24h] | AM72: [kgCO2/24h] | AN72: [kgCO2/24h]
B73: 0 | C73: Standby | D73: - | E73: n/a | F73: n/a | G73: n/a | J73: =+H73+I73 -> 0 | N73: =+L73+M73 -> 0 | O73: n/a | P73: n/a | S73: =+Q73+R73 -> 0 | AD73: =+N73*100/J73 ->  | AE73: =+(T73-S73)*100/J73 ->  | AF73: =+AD73+AE73 ->  | AG73: =+(J73/3.6)*$F$10 -> 0 | AH73: =+(S73/3.6)*F$11-(T73/3.6)*F$12 -> 0 | AI73: =+AG73+AH73 -> 0 | AJ73: =+I73*100/$F$19 ->  | AK73: =+R73 -> 0 | AL73: =+(AJ73/3.6)*$F$10 ->  | AM73: =+(AK73/3.6)*$F$11 -> 0 | AN73: =+AL73+AM73 -> 
B76: TABLE RT_07: HOT WATER PERFORMANCE MEASUREMENTS OF Add-on MCU REFERENCE TEST SYSTEM | H76: Add-on MCU types: | J76: RegPK, CombiPK, HeatPK and DHWPK
B78: TABLE RT_07A: Target parameters specified by the manufacturer | H78: TABLE RT_07B: Laboratory measurements of the reference test system | L78: Add-on MCU type: | N78: =+'Manufacturers''s Declaration'!$E$24 -> RegPK | O78: =+'Manufacturers''s Declaration'!$F$24 -> With Ref boiler | AJ78: TABLE RT-07C: Comparative reference boiler only
B79: HW heating | C79: System | D79: System | E79: DHW tapping | F79: DHW TC | G79: DHW Flow | H79: Fuel energy consumption | K79: Average fuel | L79: DHW heating load supplied by | O79: Average Draw-off temperatures | Q79: Electric power consumption | T79: Power produced | U79: Flue losses (Gross basis) | W79: Case losses | Y79: Change in energy level | AA79: Energy balance | AC79: Add-on MCU | AD79: Efficiency of reference test package | AG79: Emissions | AJ79: Energy consumption | AL79: Emissions
B80: Test No | C80: Operating mode | D80: Operating regime | E80: Cycle No | F80: Energy content | G80: Rate | H80: Add-on MCU | I80: Reference Boiler | J80: Total | K80: Calorific value | L80: Add-on MCU | M80: Reference Boiler | N80: Total | O80: Inlet CW | P80: Outlet HW | Q80: Add-on MCU | R80: Ref Boiler | S80: Ref test system | T80: By Add-on MCU | U80: Add-on MCU | V80: Ref Boiler | W80: Add-on MCU | X80: Ref Boiler | Y80: Add-on MCU | Z80: Ref Boiler | AA80: Add-on MCU | AB80: Ref Boiler | AC80: On Hours | AD80: Thermal | AE80: Power | AF80: Overall | AG80: Fuel | AH80: Electricity | AI80: Net | AJ80: Fuel | AK80: Electricity | AL80: Fuel | AM80: Electricity | AN80: Total
F81: QHW_(N) | H81: QFHW-AMCP(N) | I81: QFHW-RB(N) | J81: QFHW-TOT(N) | L81: QHW-AMCP(N) | M81: QHW-RB(N) | N81: QHW_TOT(N) | O81: TA-CW(N) | P81: TA-HW(N) | Q81: QPIN-HW-AMCP(N) | R81: QPIN-HW-RB(N) | S81: QPIN-HW-TOT(N) | T81: QPOUT-HW(N) | U81: QFL-HW-AMCP(N) | V81: QFL-HW-RB(N) | W81: QCL-HW-AMCP(N) | X81: QCL-HW-RB(N) | Y81: QΔAMCP-HW(N) | Z81: QΔRB-HW(N) | AA81: QBAL-AMCP-HW(N) | AB81: QBAL-RB-HW(N) | AD81: ƞTH-RS-HW(N) | AE81: ƞEL-RS-HW(N) | AF81: ƞTOT-RS-HW(N) | AG81: CO2FUEL-HW(N) | AH81: CO2ELEC-HW(N) | AI81: CO2NET-HW(N) | AJ81: QF(LF)-GS | AK81: QPIN-GS(LF) | AL81: CO2FUEL-GS(LF) | AM81: CO2ELEC-GS(LF) | AN81: CO2NET-GS(LF)
B82: [%] | C82: [ - ] | D82: [ - ] | E82: [ - ] | F82: [MJ/24h] | G82: [L/min] | H82: [MJ/24h] | I82: [MJ/24h] | J82: [MJ/24h] | K82: [MJ/m3] | L82: [MJ/24h] | M82: [MJ/24h] | N82: [MJ/24h] | O82: [oC] | P82: [oC] | Q82: [MJ/24h] | R82: [MJ/24h] | S82: [MJ/24h] | T82: [MJ/24h] | U82: [MJ/24h] | V82: [MJ/24h] | W82: [MJ/24h] | X82: [MJ/24h] | Y82: [MJ/24h] | Z82: [MJ/24h] | AA82: [MJ] | AB82: [MJ] | AC82: [h] | AD82: [%] | AE82: [%] | AF82: [%] | AG82: [kgCO2/24h] | AH82: [kgCO2/24h] | AI82: [kgCO2/24h] | AJ82: [MJ/24h] | AL82: [kgCO2/24h] | AM82: [kgCO2/24h] | AN82: [kgCO2/24h]
B83: 1 | C83: =+F$43 -> Continuous | D83: =+J$43 -> 5 | E83: =+'Manufacturers''s Declaration'!F67 -> 2 - M | F83: =+'Manufacturers''s Declaration'!G67 -> 21.042 | G83: =IF('Manufacturers''s Declaration'!K67>0,'Manufacturers''s Declaration'!K67,"From PAS67 table") -> From PAS67 table | J83: =+H83+I83 -> 0 | N83: =+L83+M83 -> 0 | S83: =+Q83+R83 -> 0 | AD83: =+N83*100/J83 ->  | AE83: =+(T83-S83)*100/J83 ->  | AF83: =+AD83+AE83 ->  | AG83: =+(J83/3.6)*$F$10 -> 0 | AH83: =+(S83/3.6)*$F$11-(T83/3.6)*$F$12 -> 0 | AI83: =+AG83+AH83 -> 0 | AJ83: =+N83*100/$H$19 ->  | AK83: =+R83 -> 0 | AL83: =+(AJ83/3.6)*$F$10 ->  | AM83: =+(AK83/3.6)*$F$11 -> 0 | AN83: =+AL83+AM83 -> 
B84: 2 | C84: =+F$43 -> Continuous | D84: =+J$43 -> 5 | E84: =+'Manufacturers''s Declaration'!F68 -> 3 - L | F84: =+'Manufacturers''s Declaration'!G68 -> 41.958 | G84: =IF('Manufacturers''s Declaration'!K68>0,'Manufacturers''s Declaration'!K68,"From PAS67 table") -> From PAS67 table | J84: =+H84+I84 -> 0 | N84: =+L84+M84 -> 0 | S84: =+Q84+R84 -> 0 | AD84: =+N84*100/J84 ->  | AE84: =+(T84-S84)*100/J84 ->  | AF84: =+AD84+AE84 ->  | AG84: =+(J84/3.6)*$F$10 -> 0 | AH84: =+(S84/3.6)*$F$11-(T84/3.6)*$F$12 -> 0 | AI84: =+AG84+AH84 -> 0 | AJ84: =+N84*100/$H$19 ->  | AK84: =+R84 -> 0 | AL84: =+(AJ84/3.6)*$F$10 ->  | AM84: =+(AK84/3.6)*$F$11 -> 0 | AN84: =+AL84+AM84 -> 
B85: 3 | C85: Continuous | D85: 5 | E85: =+'Manufacturers''s Declaration'!F69 -> 4 - XL | F85: =+'Manufacturers''s Declaration'!G69 -> 68.652 | G85: =IF('Manufacturers''s Declaration'!K69>0,'Manufacturers''s Declaration'!K69,"From PAS67 table") -> From PAS67 table | J85: 0 | N85: 0 | S85: 0 | AD85: =+N85*100/J85 ->  | AE85: =+(T85-S85)*100/J85 ->  | AG85: 0 | AH85: 0 | AI85: =+AG85+AH85 -> 0 | AK85: 0 | AM85: 0
AK86: *to deliver this heat the boiler is firing for a negligible amount or roughly the same amount as in the add-on test case, so no change to value
B88: TABLE RT_08: SUMMARY OF PERFORMANCE MEASUREMENTS OF Add-on MCU REFERENCE TEST SYSTEM | H88: Add-on MCU types: | J88: RegPK, CombiPK, HeatPK and DHWPK
B90: Table RT_08: PAS 67 Table: Reference System Test Results - Used by APM / SBEM Calculators
B91: Test | C91: Load | D91: Operating | E91: Operating | F91: Total fuel | G91: Average fuel | H91: Energy output | I91: Primary circuit temperatures | K91: Power produced | L91: Total power used | M91: Total Flue | N91: Total Case | O91: Total Change | P91: Total Energy | Q91: Laboratory test conditions
B92: No | C92: Factor | D92: Mode | E92: Regime | F92: Energy used | G92: Calorific value | H92: to SH or DHW | I92: Average return | J92: Average flow | K92: By Add-on MCU | L92: Ref test system | M92: Losses | N92: Losses | O92: In energy | P92: Balance | Q92: Temperature | R92: Relative | S92: Pressure
F93: QFUEL_TOTAL | H93: QSH_TOTAL | I93: TAPCR | J93: TAPCF | K93: EOUT-AOMCP | L93: EIN-RT_SYSTEM | M93: QFLUE_TOTAL | N93: QCASE_TOTAL | O93: QΔTOTAL | P93: QBALANCE_TOTAL | R93: Humidity
B94: [ - ] | C94: [%] | D94: [ - ] | E94: [ - ] | F94: [MJ/24h] | G94: [MJ/m3] | H94: [MJ/24h] | I94: [oC] | J94: [oC] | K94: [MJ/24h] | L94: [MJ/24h] | M94: [MJ/24h] | N94: [MJ/24h] | O94: [MJ/24h] | P94: [MJ] | Q94: [oC] | R94: [%] | S94: [mbar]
B95: 1 | C95: =+B58 -> 100 | D95: =+C58 -> Continuous | E95: =+D58 -> 1 | F95: =+J58 -> 0 | G95: =+K58 -> 0 | H95: =+N58 -> 0 | I95: =+O58 -> 0 | J95: =+P58 -> 0 | K95: =+T58 -> 0 | L95: =+S58 -> 0 | M95: =+U58+V58 -> 0 | N95: =+W58+X58 -> 0 | O95: =+Y58+Z58 -> 0 | P95: =+AA58+AB58 -> 0
B96: 2 | C96: =+B59 -> enter | E96: 1 | F96: =+J59 -> 0 | G96: =+K59 -> 0 | H96: =+N59 -> 0 | I96: =+O59 -> 0 | J96: 0 | K96: =+T59 -> 0 | L96: =+S59 -> 0 | M96: =+U59+V59 -> 0 | N96: =+W59+X59 -> 0 | O96: =+Y59+Z59 -> 0 | P96: =+AA59+AB59 -> 0
B97: 3 | C97: =+B60 -> enter | E97: 1 | F97: 0 | G97: =+K60 -> 0 | H97: 0 | I97: =+O60 -> 0 | J97: 0 | K97: 0 | L97: 0 | M97: 0 | N97: 0 | O97: 0 | P97: 0
B98: 4 | C98: =+B61 -> 30 | D98: Continuous | E98: 1 | F98: 0 | G98: =+K61 -> 0 | H98: 0 | I98: =+O61 -> 0 | J98: 0 | K98: 0 | L98: 0 | M98: 0 | N98: 0 | O98: 0 | P98: 0
B99: 5 | C99: =+B62 -> enter | E99: 1 | F99: 0 | G99: =+K62 -> 0 | H99: 0 | I99: =+O62 -> 0 | J99: 0 | K99: 0 | L99: 0 | M99: 0 | N99: 0 | O99: 0 | P99: 0
B100: 6 | C100: =+B63 -> 10 | D100: Continuous | E100: 1 | F100: 0 | G100: =+K63 -> 0 | H100: 0 | I100: =+O63 -> 0 | J100: 0 | K100: 0 | L100: 0 | M100: 0 | N100: 0 | O100: 0 | P100: 0
B101: 7 | C101: =+B73 -> 0 | D101: =+C73 -> Standby | E101: =+D73 -> - | F101: =+J73 -> 0 | G101: =+K73 -> 0 | H101: =+N73 -> 0 | I101: =+L73 -> 0 | J101: =+M73 -> 0 | K101: =+Q73 -> 0 | L101: =+P73 -> n/a | M101: =+R73+S73 -> 0 | N101: =+T73+U73 -> 0 | O101: =+V73+W73 -> 0 | P101: =+X73+Y73 -> 0
B102: 8 | C102: DHW | D102: =+C83 -> Continuous | E102: =+D83 -> 5 | F102: =+J83 -> 0 | G102: =+K83 -> 0 | H102: =+F83 -> 21.042 | I102: =+O83 -> 0 | J102: =+P83 -> 0 | K102: =+T83 -> 0 | L102: =+S83 -> 0 | M102: =+U83+V83 -> 0 | N102: =+W83+X83 -> 0 | O102: =+Y83+Z83 -> 0 | P102: =+AA83+AB83 -> 0
B103: 9 | C103: DHW | D103: =+C84 -> Continuous | E103: 5 | F103: =+J84 -> 0 | G103: =+K84 -> 0 | H103: =+F84 -> 41.958 | I103: =+O84 -> 0 | J103: =+P84 -> 0 | K103: =+T84 -> 0 | L103: =+S84 -> 0 | M103: =+U84+V84 -> 0 | N103: =+W84+X84 -> 0 | O103: =+Y84+Z84 -> 0 | P103: =+AA84+AB84 -> 0
B104: 10 | C104: DHW | D104: =+C85 -> Continuous | E104: 5 | F104: 0 | G104: 0 | H104: 68.652 | I104: 0 | J104: 0 | K104: =+T85 -> 0 | L104: =+S85 -> 0 | M104: =+U85+V85 -> 0 | N104: =+W85+X85 -> 0 | O104: =+Y85+Z85 -> 0 | P104: =+AA85+AB85 -> 0
B107: TABLE RT_09: CO2 Emission comparisons between Add-on MCU Reference System and Equivalent Gas Boiler only System
B109: Test | C109: Load | D109: Energy output | E109: CO2 Emissions | H109: CO2 reduction (%)
B110: No | C110: Factor | D110: to | E110: Add-on MCU+ | F110: Equivalent | H110: (pos means reduction)
D111: Space or HW | E111: Reference test | F111: Gas boiler
D112: Heating | E112: System | F112: System | H112: (neg means increase)
B113: [ - ] | C113: [%] | D113: [MJ/24h] | E113: [kgCO2/24h] | F113: [kgCO2/24h]
B114: 1 | C114: =+C95 -> 100 | D114: =+H95 -> 0 | E114: =+AI58 -> 0 | F114: =+AN58 ->  | H114: =(F114-E114)/F114 -> 
B115: 2 | C115: enter | D115: 0 | E115: =+AI59 -> 0 | F115: =+AN59 ->  | H115: =(F115-E115)/F115 -> 
B116: 3 | C116: enter | D116: 0 | E116: 0
B117: 4 | C117: 30 | D117: 0 | E117: 0
B118: 5 | C118: enter | D118: 0 | E118: 0
B119: 6 | C119: 10 | D119: 0 | E119: 0
B120: 7 | C120: =+C101&" - Standby" -> 0 - Standby | D120: 0 | E120: =+AI73 -> 0 | F120: =+AN73 -> 
B121: 8 | C121: =+C102 -> DHW | D121: 21.042 | E121: =+AI83 -> 0 | F121: =+AN83 -> 
B122: 9 | C122: =+C103 -> DHW | D122: 41.958 | E122: =+AI84 -> 0 | F122: =+AN84 -> 
B123: 10 | C123: =+C104 -> DHW | D123: 68.652 | E123: =+AI85 -> 0 | F123: =+AN85 -> 

Sheet Installation Package
B2: =+'Manufacturers''s Declaration'!B2 -> Micro-Cogeneration Add-on Calculator | I2: Version: | J2: =+'Manufacturers''s Declaration'!J2 -> v 1.0
B6: TABLE IS_01: Specification of the boiler and space heating system in the installation dwelling | H6: Add-on MCU type: | J6: =+'Manufacturers''s Declaration'!$E$24 -> RegPK | K6: =+'Manufacturers''s Declaration'!$F$24 -> With Ref boiler
B8: TABLE IS_01: Specification of the boiler and space heating system in the installation dwelling
F9: Symbol | G9: Unit | H9: Value | I9: Notes
B10: Maximum rating of the boiler - (Heating mode i.e. 80/60oC) | F10: QTB_MAX | G10: [kW] | I10: Range Min - Max: | J10: =+' Installation Package '!F133 -> 0 | K10: =+E133 -> 0
B11: Minimum rating of the boiler - (Heating mode i.e. 80/60oC) | F11: QTB_MIN | G11: [kW]
B12: Boiler turn down ration (Min/Max) | F12: BLR_MB | G12: [ - ] | H12: =+H11/H10 ->  | I12: =+IF(H12<H133,"Out of range",IF(H12>G133,"Out of range","Ok")) -> 
B13: Boiler efficiency | E13: Annual | F13: ηA | G13: [%]
E14: DHW | F14: ηDHW | G14: [%]
B15: Maximum power rating of the Add-on MCU system + target boiler (100% Load factor) | F15: QTSH_MAX | G15: [kW]
G16: [MJ/24h] | H16: =+H15*24*3.6 -> 0
B17: Standby power consumption of the target boiler | E17: Firing mode | F17: QPB_FM | G17: [W]
E18: Standby mode | F18: QPB_SM | G18: [W]
B21: TABLE IS_02: Specification of the hot water heating system in the installation dwelling | H21: Add-on MCU type: | J21: =+'Manufacturers''s Declaration'!$E$24 -> RegPK | K21: =+'Manufacturers''s Declaration'!$F$24 -> With Ref boiler
B23: TABLE IS_02: Specification of the hot water heating system in the installation dwelling | I23: Building type: | J23: =+'Manufacturers''s Declaration'!G24 -> Single family
F24: Symbol | G24: Unit | H24: Value | I24: Notes
B25: Capacity of the hot water storage vessel in the building | F25: [VHW_STORE] | G25: [L] | I25: Manufacturer's Range: | J25: 0 | K25: 0
B26: Manufacturer Declared heat loss rate for the external hot water storage vessel at 45K ΔT (regPK only) | F26: [HLHWS] | G26: [W] | I26: Max Permissable heat loss: | K26: =16.66+8.33*(H25^0.4) -> 16.66
B27: Maximum hot water load tested with the reference boiler | F27: QHW-MAX | G27: [MJ/24h] | H27: =+MAX('Reference Test Data'!N83:N85) -> 0 | I27: Max draw limit (MJ/24h] = | K27: =+H27*1.25 -> 0
B28: Select HW consumption option (assumed by Tapping cycle or L/day] | F28: [QHW_PROFILE] | G28: [Select] | H28: 1) EU_TC
B29: Daily hot water usage | F29: [VHW_CON] | G29: [L/day] | I29: Only required if option L/day is selected above
B30: Select EU Tapping cycle from the list | F30: [VHW_CON] | G30: [ - ] | H30: 2 - M | I30: Only required if option EU_TC is selected above (EU tapping cycle)
B31: Energy content of hot water consumption | F31: Volume | G31: [L/day] | H31: =+IF(H28="1) EU_TC",E151,H29) -> 100
F32: QTHW | G32: [kWh/24h] | H32: =+IF(H28="1) EU_TC",' Installation Package '!E150,' Installation Package '!F150) -> 5.845
G33: [MJ/24h] | H33: =+H32*3.6 -> 21.042 | I33: =+IF(H33>K27,"HW Load above limit - Decrease","OK") -> HW Load above limit - Decrease
B36: TABLE IS_03: Space heating performance of the Add-on MCU + target secondary system in the installation building | K36: Add-on MCU type: | M36: =+'Manufacturers''s Declaration'!$E$24 -> RegPK | N36: =+'Manufacturers''s Declaration'!$F$24 -> With Ref boiler
B38: Table IS_03A: Add-on MCU + Boiler space heating performance
B39: Load factor | C39: Heating system | D39: Heating system | E39: Energy for space heating | H39: Fuel energy consumption | K39: Electricity generation & consumption (Building Plant) | P39: CO2 Emissions
C40: Operating mode | D40: Operating regime | E40: Total | F40: Supplied by | G40: Supplied by | I40: Building | K40: Consumption | N40: Generation | O40: Net electricity | P40: Fuel | Q40: Electricity | R40: Electricity | S40: Net
E41: Required | F41: Add-on MCU | G41: Boiler | H41: Add-on MCU | I41: Boiler | J41: Total | K41: Add-on MCU | L41: Heating system | M41: Total | N41: Add-on MCU | O41: Exported | Q41: Import | R41: Export | S41: Heating system
B42: [%] | C42: [ - ] | D42: [ - ] | E42: [MJ/24h] | F42: [MJ/24h] | G42: [MJ/24h] | H42: [MJ/24h] | I42: [MJ/24h] | J42: [MJ/24h] | K42: [MJ/24h] | L42: [MJ/24h] | M42: [MJ/24h] | N42: [MJ/24h] | O42: [MJ/24h] | P42: [kgCO2/24h] | Q42: [kgCO2/24h] | R42: [kgCO2/24h] | S42: [kgCO2/24h]
B43: =+'Reference Test Data'!B58 -> 100 | C43: =+'Reference Test Data'!C58 -> Continuous | D43: =+'Reference Test Data'!D58 -> 1 | E43: =+IF(M36<>"DHWPK",(H15*24*3.6),0) -> 0 | F43: =+K161 -> 0 | G43: =+E43-F43 -> 0 | H43: =+L161 ->  | I43: =+L173 ->  | J43: =+H43+I43 ->  | K43: =+N161 ->  | L43: =+IF(M$36<>"DHWPK",P173,0) ->  | M43: =+K43+L43 ->  | N43: =+M161 ->  | O43: =+N43-M43 ->  | P43: =+(J43/3.6)*'Reference Test Data'!$F$10 ->  | Q43: =+(M43/3.6)*'Reference Test Data'!$F$11 ->  | R43: =+(N43/3.6)*'Reference Test Data'!$F$12 ->  | S43: =+(P43+Q43)-R43 -> 
B44: =+'Reference Test Data'!B59 -> enter | C44: =+'Reference Test Data'!C59 ->  | D44: =+'Reference Test Data'!D59 -> 1 | E44: =+(E$43/100)*B44 ->  | G44: =+E44-F44 ->  | J44: =+H44+I44 ->  | M44: =+K44+L44 ->  | O44: =+N44-M44 ->  | P44: =+(J44/3.6)*'Reference Test Data'!$F$10 ->  | Q44: =+(M44/3.6)*'Reference Test Data'!$F$11 ->  | R44: =+(N44/3.6)*'Reference Test Data'!$F$12 ->  | S44: =+(P44+Q44)-R44 -> 
B45: =+'Reference Test Data'!B60 -> enter | C45: =+'Reference Test Data'!C60 ->  | D45: =+'Reference Test Data'!D60 -> 1 | E45: =+(E$43/100)*B45 ->  | P45: =+(J45/3.6)*'Reference Test Data'!$F$10 ->  | Q45: =+(M45/3.6)*'Reference Test Data'!$F$11 ->  | R45: =+(N45/3.6)*'Reference Test Data'!$F$12 -> 
B46: =+'Reference Test Data'!B61 -> 30 | C46: =+'Reference Test Data'!C61 -> Continuous | D46: =+'Reference Test Data'!D61 -> 1 | E46: 0 | F46: 0 | G46: 0 | P46: =+(J46/3.6)*'Reference Test Data'!$F$10 ->  | Q46: =+(M46/3.6)*'Reference Test Data'!$F$11 ->  | R46: =+(N46/3.6)*'Reference Test Data'!$F$12 -> 
B47: =+'Reference Test Data'!B62 -> enter | C47: =+'Reference Test Data'!C62 ->  | D47: =+'Reference Test Data'!D62 -> 1 | P47: =+(J47/3.6)*'Reference Test Data'!$F$10 ->  | Q47: =+(M47/3.6)*'Reference Test Data'!$F$11 ->  | R47: =+(N47/3.6)*'Reference Test Data'!$F$12 -> 
B48: =+'Reference Test Data'!B63 -> 10 | C48: =+'Reference Test Data'!C63 -> Continuous | D48: =+'Reference Test Data'!D63 -> 1 | E48: 0 | F48: 0 | G48: 0 | P48: =+(J48/3.6)*'Reference Test Data'!$F$10 ->  | Q48: =+(M48/3.6)*'Reference Test Data'!$F$11 ->  | R48: =+(N48/3.6)*'Reference Test Data'!$F$12 -> 
B51: TABLE IS_04: Standby performance of the Add-on MCU system in the installation building + target secondary system in the installation building | K51: Add-on MCU type: | M51: =+'Manufacturers''s Declaration'!$E$24 -> RegPK | N51: =+'Manufacturers''s Declaration'!$F$24 -> With Ref boiler
B53: Table IS_04A: Add-on MCU + Boiler Standby performance
B54: Load factor | C54: Heating system | D54: Heating system | E54: Energy for space heating | H54: Fuel energy consumption | K54: Electricity generation & consumption (Building Plant) | P54: CO2 Emissions
C55: Operating mode | D55: Operating regime | E55: Total | F55: Supplied by | G55: Supplied by | I55: Building | K55: Consumption | N55: Generation | O55: Net electricity | P55: Fuel | Q55: Electricity | R55: Electricity | S55: Net
E56: Required | F56: Add-on MCU | G56: Boiler | H56: Add-on MCU | I56: Boiler | J56: Total | K56: Add-on MCU | L56: Heating system | M56: Total | N56: Add-on MCU | O56: Exported | Q56: Import | R56: Export | S56: Heating system
B57: [%] | C57: [ - ] | D57: [ - ] | E57: [MJ/24h] | F57: [MJ/24h] | G57: [MJ/24h] | H57: [MJ/24h] | I57: [MJ/24h] | J57: [MJ/24h] | K57: [MJ/24h] | L57: [MJ/24h] | M57: [MJ/24h] | N57: [MJ/24h] | O57: [MJ/24h] | P57: [kgCO2/24h] | Q57: [kgCO2/24h] | R57: [kgCO2/24h] | S57: [kgCO2/24h]
B58: =+'Reference Test Data'!B73 -> 0 | C58: =+'Reference Test Data'!C73 -> Standby | D58: =+'Reference Test Data'!D73 -> - | E58: 0 | F58: 0 | G58: 0 | H58: =+N188 -> 0 | I58: =+O188 ->  | K58: =+Q188 -> 0 | L58: =+R188 ->  | N58: =+T188 -> 0 | O58: =+N58-M58 ->  | P58: =+(J58/3.6)*'Reference Test Data'!F10 ->  | Q58: =+(M58/3.6)*'Reference Test Data'!F11 ->  | R58: =+(N58/3.6)*'Reference Test Data'!F12 -> 0 | S58: =+(P58+Q58)-R58 -> 
B61: TABLE IS_05: Hot water heating performance of the Add-on MCU system in the installation building + target secondary system in the installation building | K61: Add-on MCU type: | M61: =+'Manufacturers''s Declaration'!$E$24 -> RegPK | N61: =+'Manufacturers''s Declaration'!$F$24 -> With Ref boiler
B63: Table IS_05A: Add-on MCU + Boiler in hot water heating mode
B64: System | C64: System | D64: Energy required for HW heating | F64: HW heating energy supplied by | I64: Fuel energy consumption | L64: Electricity generation & consumption (Building Plant) | Q64: CO2 Emissions
B65: Operating mode | C65: Operating regime | D65: Energy content | E65: Total | F65: Add-on MCU | G65: Boiler [1] | H65: Boiler | J65: Building | L65: Consumption | O65: Generation | P65: Net electricity | Q65: Fuel | R65: Electricity | S65: Electricity | T65: Net
D66: of draw-off | G66: All types | H66: Total | I66: Add-on MCU | J66: Boiler | K66: Total | L66: Add-on MCU | M66: Heating system | N66: Total | O66: Add-on MCU | P66: Exported | R66: Import | S66: Export | T66: Heating system
B67: [ - ] | C67: [ - ] | D67: [MJ/24h] | E67: [MJ/24h] | F67: [MJ/24h] | G67: [MJ/24h] | H67: [MJ/24h] | I67: [MJ/24h] | J67: [MJ/24h] | K67: [MJ/24h] | L67: [MJ/24h] | M67: [MJ/24h] | N67: [MJ/24h] | O67: [MJ/24h] | P67: [MJ/24h] | Q67: [kgCO2/24h] | R67: [kgCO2/24h] | S67: [kgCO2/24h] | T67: [kgCO2/24h]
B68: HW heating | C68: =+'Reference Test Data'!D85 -> 5 | D68: =+D219 -> 21.042 | E68: =+F219 -> 21.042 | F68: =+H219 ->  | G68: =+I219 ->  | H68: =+IF(N61="Stand alone",(G68+#REF!),G68) ->  | I68: =+L219 ->  | J68: =+H68*100/(H14*E205) ->  | K68: =+I68+J68 ->  | L68: =+O219 -> 0 | M68: =+P219 ->  | N68: =+L68+M68 ->  | O68: =+N219 ->  | P68: =+O68-N68 ->  | Q68: =+(K68/3.6)*'Reference Test Data'!$F$10 ->  | R68: =+(N68/3.6)*'Reference Test Data'!$F$11 ->  | S68: =+(O68/3.6)*'Reference Test Data'!$F$12 ->  | T68: =+(Q68+R68)-S68 -> 
B71: TABLE IS_06: SUMMARY OF Add-on MCU HEATING SYSTEM + target secondary system in the installation building CALCULATED PERFORMANCE IN THE BUILDING | H71: Add-on MCU types: | J71: RegPK, CombiPK, HeatPK and DHWPK
B73: Table IS_06: PAS 67 Format Results
B74: Test | C74: Load | D74: Operating | E74: Operating | F74: Total fuel | G74: Average fuel | H74: Energy output | I74: Primary circuit temperatures | K74: Power produced | L74: Total power used | M74: Net electricity | N74: Emissions
B75: No | C75: Factor | D75: Mode | E75: Regime | F75: Energy used | G75: Calorific value | H75: to SH or DHW | I75: Average return | J75: Average flow | K75: By Add-on MCU | M75: Exported | N75: Add-on MCU +
F76: QFUEL_TOTAL | H76: QSH_TOTAL | I76: TAPCR | J76: TAPCF | K76: EOUT-AOMCP | L76: EIN-RT_SYSTEM | N76: target boiler
B77: [ - ] | C77: [%] | D77: [ - ] | E77: [ - ] | F77: [MJ/24h] | G77: [MJ/m3] | H77: [MJ/24h] | I77: [oC] | J77: [oC] | K77: [MJ/24h] | L77: [MJ/24h] | M77: [MJ/24h] | N77: [kgCO2]
B78: 1 | C78: =+B43 -> 100 | D78: Continuous | E78: 1 | F78: =+J43 ->  | G78: N/A | H78: =E43 -> 0 | I78: N/A | J78: N/A | K78: =+N43 ->  | L78: =+M43 ->  | M78: =+O43 ->  | N78: =+S43 -> 
B79: 2 | C79: enter | E79: 1 | G79: N/A | H79: =E44 ->  | I79: N/A | J79: N/A | L79: =+M44 -> 
B80: 3 | C80: enter | E80: 1 | G80: N/A | I80: N/A | J80: N/A
B81: 4 | C81: 30 | D81: Continuous | E81: 1 | G81: N/A | H81: 0 | I81: N/A | J81: N/A
B82: 5 | C82: enter | E82: 1 | G82: N/A | I82: N/A | J82: N/A
B83: 6 | C83: 10 | D83: Continuous | E83: 1 | G83: N/A | H83: 0 | I83: N/A | J83: N/A
B84: 7 | C84: =+B58 -> 0 | D84: =+C58 -> Standby | E84: =+D58 -> - | F84: =+J58 ->  | G84: N/A | H84: =+G58 -> 0 | I84: N/A | J84: N/A | K84: =+N58 -> 0 | L84: =+M58 ->  | M84: =+O58 ->  | N84: =+S58 -> 
B85: 8 | C85: HW Heating | D85: =+B68 -> HW heating | E85: =+C68 -> 5 | F85: =K68 ->  | G85: N/A | H85: =+E68 -> 21.042 | I85: N/A | J85: N/A | K85: =+O68 ->  | L85: =+N68 ->  | M85: =+P68 ->  | N85: =+T68 -> 
B89: TABLE IS_07: Gas boiler only calculations for comparison | H89: Add-on MCU types: | J89: RegPK, CombiPK, HeatPK and DHWPK
B91: Table IS_07: Boiler only then comparison
B92: Test | C92: Load | D92: Stated | E92: Heat to be supplied | F92: Boiler fuel | G92: Average | H92: Average | I92: Calculated | J92: Corrected | K92: Boiler Only CO2 Emissions
B93: No | C93: Factor | D93: Boiler | E93: by boiler | F93: Consumption | G93: Boiler heat | H93: Boiler | I93: power | J93: Power | K93: Fuel | L93: Electricity | M93: Electricity | N93: Boiler total
D94: Efficiency | G94: Output | H94: Firing time | I94: Consumption | J94: Consumption | L94: Import | M94: Export | N94: Heating system
B95: [ - ] | C95: [%] | D95: [%] | E95: [MJ/24h] | F95: [MJ/24h] | G95: [kW] | H95: [h] | I95: [MJ/24h] | J95: [MJ/24h] | K95: [kgCO2/24h] | L95: [kgCO2/24h] | M95: [kgCO2/24h] | N95: [kgCO2/24h]
B96: 1 | C96: =+B43 -> 100 | D96: =+$H$13 -> 0 | E96: =E43 -> 0 | F96: =+IF(C96>0,(E96*100/D96),0) ->  | G96: =(E96/(3.6*LOOKUP(C96,'REF_DATA(V1.0)'!$E$48:$N$48,'REF_DATA(V1.0)'!$E$49:$N$49))) -> 0 | H96: =IF(G96>' Installation Package '!$H$11,LOOKUP($C96,'REF_DATA(V1.0)'!$E$48:$N$48,'REF_DATA(V1.0)'!$E$49:$N$49),(G96/' Installation Package '!$H$11)*LOOKUP($C96,'REF_DATA(V1.0)'!$E$48:$N$48,'REF_DATA(V1.0)'!$E$49:$N$49)) ->  | I96: =+(H96*' Installation Package '!$H$17+(24-' Installation Package '!H96)*' Installation Package '!$H$18)*3.6/1000 ->  | J96: =I96 ->  | K96: =+(F96/3.6)*'Reference Test Data'!$F$10 ->  | L96: =+(J96/3.6)*'Reference Test Data'!$F$11 ->  | M96: 0 | N96: =+(K96+L96)-M96 -> 
B97: 2 | C97: =+B44 -> enter | D97: =+$H$13 -> 0 | E97: =E44 ->  | F97: =+IF(C97>0,(E97*100/D97),0) ->  | G97: =(E97/(3.6*LOOKUP(C97,'REF_DATA(V1.0)'!$E$48:$N$48,'REF_DATA(V1.0)'!$E$49:$N$49))) ->  | H97: =IF(G97>' Installation Package '!$H$11,LOOKUP($C97,'REF_DATA(V1.0)'!$E$48:$N$48,'REF_DATA(V1.0)'!$E$49:$N$49),(G97/' Installation Package '!$H$11)*LOOKUP($C97,'REF_DATA(V1.0)'!$E$48:$N$48,'REF_DATA(V1.0)'!$E$49:$N$49)) ->  | I97: =+(H97*' Installation Package '!$H$17+(24-' Installation Package '!H97)*' Installation Package '!$H$18)*3.6/1000 ->  | K97: =+(F97/3.6)*'Reference Test Data'!$F$10 ->  | L97: =+(J97/3.6)*'Reference Test Data'!$F$11 ->  | M97: 0 | N97: =+(K97+L97)-M97 -> 
B98: 3 | C98: enter | D98: 0 | G98: =(E98/(3.6*LOOKUP(C98,'REF_DATA(V1.0)'!$E$48:$N$48,'REF_DATA(V1.0)'!$E$49:$N$49))) ->  | H98: =IF(G98>' Installation Package '!$H$11,LOOKUP($C98,'REF_DATA(V1.0)'!$E$48:$N$48,'REF_DATA(V1.0)'!$E$49:$N$49),(G98/' Installation Package '!$H$11)*LOOKUP($C98,'REF_DATA(V1.0)'!$E$48:$N$48,'REF_DATA(V1.0)'!$E$49:$N$49)) ->  | I98: =+(H98*' Installation Package '!$H$17+(24-' Installation Package '!H98)*' Installation Package '!$H$18)*3.6/1000 ->  | K98: =+(F98/3.6)*'Reference Test Data'!$F$10 ->  | L98: =+(J98/3.6)*'Reference Test Data'!$F$11 ->  | M98: 0
B99: 4 | C99: 30 | D99: 0 | E99: 0 | G99: =(E99/(3.6*LOOKUP(C99,'REF_DATA(V1.0)'!$E$48:$N$48,'REF_DATA(V1.0)'!$E$49:$N$49))) -> 0 | H99: =IF(G99>' Installation Package '!$H$11,LOOKUP($C99,'REF_DATA(V1.0)'!$E$48:$N$48,'REF_DATA(V1.0)'!$E$49:$N$49),(G99/' Installation Package '!$H$11)*LOOKUP($C99,'REF_DATA(V1.0)'!$E$48:$N$48,'REF_DATA(V1.0)'!$E$49:$N$49)) ->  | I99: =+(H99*' Installation Package '!$H$17+(24-' Installation Package '!H99)*' Installation Package '!$H$18)*3.6/1000 ->  | K99: =+(F99/3.6)*'Reference Test Data'!$F$10 ->  | L99: =+(J99/3.6)*'Reference Test Data'!$F$11 ->  | M99: 0
B100: 5 | C100: enter | D100: 0 | G100: =(E100/(3.6*LOOKUP(C100,'REF_DATA(V1.0)'!$E$48:$N$48,'REF_DATA(V1.0)'!$E$49:$N$49))) ->  | H100: =IF(G100>' Installation Package '!$H$11,LOOKUP($C100,'REF_DATA(V1.0)'!$E$48:$N$48,'REF_DATA(V1.0)'!$E$49:$N$49),(G100/' Installation Package '!$H$11)*LOOKUP($C100,'REF_DATA(V1.0)'!$E$48:$N$48,'REF_DATA(V1.0)'!$E$49:$N$49)) ->  | I100: =+(H100*' Installation Package '!$H$17+(24-' Installation Package '!H100)*' Installation Package '!$H$18)*3.6/1000 ->  | K100: =+(F100/3.6)*'Reference Test Data'!$F$10 ->  | L100: =+(J100/3.6)*'Reference Test Data'!$F$11 ->  | M100: 0
B101: 6 | C101: =+B48 -> 10 | D101: 0 | E101: 0 | G101: =(E101/(3.6*LOOKUP(C101,'REF_DATA(V1.0)'!$E$48:$N$48,'REF_DATA(V1.0)'!$E$49:$N$49))) -> 0 | H101: =IF(G101>' Installation Package '!$H$11,LOOKUP($C101,'REF_DATA(V1.0)'!$E$48:$N$48,'REF_DATA(V1.0)'!$E$49:$N$49),(G101/' Installation Package '!$H$11)*LOOKUP($C101,'REF_DATA(V1.0)'!$E$48:$N$48,'REF_DATA(V1.0)'!$E$49:$N$49)) ->  | I101: =+(H101*' Installation Package '!$H$17+(24-' Installation Package '!H101)*' Installation Package '!$H$18)*3.6/1000 ->  | J101: =I101 ->  | K101: =+(F101/3.6)*'Reference Test Data'!$F$10 ->  | L101: =+(J101/3.6)*'Reference Test Data'!$F$11 ->  | M101: 0
B102: 7 | C102: =+C58 -> Standby | D102: =+C76 -> 0 | E102: =+E58 -> 0 | F102: =+I58 ->  | G102: N/A | H102: =+G76 -> 0 | I102: =+(H102*' Installation Package '!$H$17+(24-' Installation Package '!H102)*' Installation Package '!$H$18)*3.6/1000 -> 0 | J102: =I102 -> 0 | K102: =+(F102/3.6)*'Reference Test Data'!$F$10 ->  | L102: =+(J102/3.6)*'Reference Test Data'!$F$11 -> 0 | M102: =+O76 -> 0
B103: 8 | C103: HW Heating | D103: =$H$14 -> 0 | E103: =E68 -> 21.042 | F103: =+IF(C103>0,(E103*100/D103),0) ->  | G103: N/A | H103: 0 | I103: =+(H103*' Installation Package '!$H$17+(24-' Installation Package '!H103)*' Installation Package '!$H$18)*3.6/1000 -> 0 | J103: =I103 -> 0 | K103: =+(F103/3.6)*'Reference Test Data'!$F$10 ->  | L103: =+(J103/3.6)*'Reference Test Data'!$F$11 -> 0 | M103: =+U86 -> 0
B106: TABLE IS_08: Emissions Comparison
B108: Table IS_08: Emissions Comparison
B109: Test | C109: Load | D109: Emissions | E109: Emissions | F109: Emissions
B110: No | C110: Factor | D110: Add-on MCU + | E110: Boiler only | F110: Reduction
D111: target boiler
B112: [ - ] | C112: [%] | D112: [kgCO2/24h] | E112: [kgCO2/24h] | F112: [kgCO2/24h]
B113: 1 | C113: =B$43 -> 100 | D113: =S$43 ->  | E113: =K$96+L$96-M$96 ->  | F113: =E$113-D$113 -> 
B114: 2 | C114: =B$44 -> enter | D114: =S$44 ->  | E114: =K$97+L$97-M$97 ->  | F114: =E$114-D$114 -> 
B115: 3 | C115: =B$45 -> enter | D115: =S$45 ->  | E115: =K$98+L$98-M$98 ->  | F115: =E$115-D$115 -> 
B116: 4 | C116: =B$46 -> 30 | D116: =S$46 ->  | E116: =K$99+L$99-M$99 ->  | F116: =E$116-D$116 -> 
B117: 5 | C117: =B$47 -> enter | D117: =S$47 ->  | E117: =K$100+L$100-M$100 ->  | F117: =E$117-D$117 -> 
B118: 6 | C118: =B$48 -> 10 | D118: =S$48 ->  | E118: =K$101+L$101-M$101 ->  | F118: =E$118-D$118 -> 
B119: 7 | C119: =C$58 -> Standby | D119: =N$84 ->  | E119: =N$102 ->  | F119: =E$119-D$119 ->  | H119: * Check latest standards, but the Standby result may be ignored.
B120: 8 | C120: HW Heating | D120: =N$85 ->  | E120: =K$103+L$103-M$103 ->  | F120: =E$120-D$120 -> 
B127: THE FOLLOWING TABLES ARE TO SHOW CALCULATIONS- THEY ARE NOT TO BE AMENDED MANUALLY
B129: Table IP_R1: Installation boiler output range
B130: Reference boiler rating | E130: Installation boiler limits
B131: Maximum | C131: Minimum | D131: Min/Max ratio | E131: Max output | F131: Min output | G131: Min/Max Ratio Permissable limits
B132: [kW] | C132: [kW] | D132: [ - ] | E132: [kW] | F132: [kW] | G132: Max | H132: Min
B133: =+'Manufacturers''s Declaration'!C45 -> 0 | C133: =+'Manufacturers''s Declaration'!D45 -> 0 | D133: =+C133/B133 ->  | E133: =H10 -> 0 | F133: =H11 -> 0 | G133: =+D133*2 ->  | H133: =0.01 -> 0.01 | J133: A boiler that can modulate deeper/lower is always a good thing, as it stops cycling and lowers return tempeartures
J134: Therefore there should be no lower limit (Min) on turndown ratio. For completeness a 1% min ratio is written as this is not seen to be technologically possible, so should have no effect, but the test house should ignore if necessary.
B136: Table IP_R2: Design heat loss and 100% Load Factor limits
B137: Parameters | E137: Unit | F137: Value
B138: Maximum thermal rating of Add-on MCU | E138: [kW] | F138: =+'Manufacturers''s Declaration'!F36 -> 0
B139: Maximum rating of the boiler | E139: [kW] | F139: =+H10 -> 0
B142: Table IP_R3: HW Storage vessel & hot water usage parameters
B143: Building type | E143: =+'Manufacturers''s Declaration'!G24 -> Single family
E144: Minimum | F144: Maximum
E145: [L] | F145: [L]
B146: Capacity of the HW Store in the building | E146: =J25 -> 0 | F146: =K25 -> 0
B148: HW Load profile type | E148: 1) EU_TC | F148: 2) L/day
B149: HW Load profile selected | E149: =+H30 -> 2 - M | F149: n/a
B150: Energy content of HW [kWh/24h] of load profile | E150: =+LOOKUP(E149,'REF_DATA(V1.0)'!B60:B68,'REF_DATA(V1.0)'!D60:D68) -> 5.845 | F150: =+F151*50*4.185/3600 -> 0
B151: Volume of 60°C hot water | E151: =+LOOKUP(E149,'REF_DATA(V1.0)'!B60:B68,'REF_DATA(V1.0)'!E60:E68) -> 100 | F151: =+H29 -> 0
B154: Table IP_R4: Space heating performance calculation of the Add-on MCU in the building | K154: Add-on MCU type: | M154: =+'Manufacturers''s Declaration'!$E$24 -> RegPK | N154: =+'Manufacturers''s Declaration'!$F$24 -> With Ref boiler
B156: Table IP_R4A: Reference system: Add-on MCU | J156: Table IP_R4B: Target building system: Add-on MCU
B157: Load | C157: Heating on | D157: Maximum | E157: Heat supplied | F157: Operating | G157: Thermal | H157: Electrical | I157: Electrical power | J157: Space heating energy | L157: Fuel | M157: Electricity | N157: Electrical power
B158: Factor | C158: Period | D158: Capacity of | E158: By Add-on MCU | F158: Efficiency of | G158: Efficiency | H158: Efficiency of | I158: Used by | J158: Total | K158: Supplied by | L158: Consumption | M158: Generated by | N158: Used by
D159: Add-on MCU | E159: Ref System | F159: Add-on MCU | G159: Of Add-on MCU | H159: Add-on MCU | I159: Add-on MCU | J159: Required | K159: Add-on MCU | L159: Of Add-on MCU | M159: Add-on MCU | N159: Add-on MCU
B160: [%] | C160: [h] | D160: [MJ/24h] | E160: [MJ/24h] | F160: [Fraction] | G160: [%] | H160: [%] | I160: [MJ/24h] | J160: [MJ/24h] | K160: [MJ/24h] | L160: [mJ/24h] | M160: [MJ/24h] | N160: [MJ/24h]
B161: =+'Reference Test Data'!C95 -> 100 | C161: =+LOOKUP(B161,'REF_DATA(V1.0)'!E$48:N$48,'REF_DATA(V1.0)'!E$49:N$49) -> 24 | D161: =+IF(B161>0,('Manufacturers''s Declaration'!$C$49*' Installation Package '!C161*3.6),0) -> 0 | E161: =+'Reference Test Data'!L58 -> 0 | F161: =+IF(D161>0,(E161/D161),0) -> 0 | G161: =+IF(B161>0,(('Reference Test Data'!L58/'Reference Test Data'!H58)*100),0) ->  | H161: =+IF(B161>0,(('Reference Test Data'!T58/'Reference Test Data'!H58)*100),0) ->  | I161: =+'Reference Test Data'!Q58 -> 0 | J161: =+E43 -> 0 | K161: =+IF(J161>=(D161*F161),(D161*F161),J161) -> 0 | L161: =+IF(B161>0,(K161*100/G161),0) ->  | M161: =+IF(B161>0,(L161*H161/100),0) ->  | N161: =+IF(B161>0,((E161/K161)*I161),0) -> 
B162: =+'Reference Test Data'!C96 -> enter | C162: =+LOOKUP(B162,'REF_DATA(V1.0)'!E$48:N$48,'REF_DATA(V1.0)'!E$49:N$49) ->  | D162: =+IF(B162>0,('Manufacturers''s Declaration'!$C$49*' Installation Package '!C162*3.6),0) ->  | E162: =+'Reference Test Data'!L59 -> 0 | F162: =+IF(D162>0,(E162/D162),0) ->  | G162: =+IF(B162>0,(('Reference Test Data'!L59/'Reference Test Data'!H59)*100),0) ->  | H162: =+IF(B162>0,(('Reference Test Data'!T59/'Reference Test Data'!H59)*100),0) ->  | I162: =+'Reference Test Data'!Q59 -> 0 | K162: =+IF(J162>=(D162*F162),(D162*F162),J162) -> 
B163: =+'Reference Test Data'!C97 -> enter | C163: =+LOOKUP(B163,'REF_DATA(V1.0)'!E$48:N$48,'REF_DATA(V1.0)'!E$49:N$49) ->  | D163: =+IF(B163>0,('Manufacturers''s Declaration'!$C$49*' Installation Package '!C163*3.6),0) ->  | E163: =+'Reference Test Data'!L60 -> 0 | G163: =+IF(B163>0,(('Reference Test Data'!L60/'Reference Test Data'!H60)*100),0) ->  | H163: =+IF(B163>0,(('Reference Test Data'!T60/'Reference Test Data'!H60)*100),0) ->  | I163: =+'Reference Test Data'!Q60 -> 0
B164: =+'Reference Test Data'!C98 -> 30 | C164: =+LOOKUP(B164,'REF_DATA(V1.0)'!E$48:N$48,'REF_DATA(V1.0)'!E$49:N$49) -> 24 | D164: =+IF(B164>0,('Manufacturers''s Declaration'!$C$49*' Installation Package '!C164*3.6),0) -> 0 | E164: =+'Reference Test Data'!L61 -> 0 | F164: 0 | G164: =+IF(B164>0,(('Reference Test Data'!L61/'Reference Test Data'!H61)*100),0) ->  | H164: =+IF(B164>0,(('Reference Test Data'!T61/'Reference Test Data'!H61)*100),0) ->  | I164: =+'Reference Test Data'!Q61 -> 0 | J164: 0 | K164: 0
B165: =+'Reference Test Data'!C99 -> enter | C165: =+LOOKUP(B165,'REF_DATA(V1.0)'!E$48:N$48,'REF_DATA(V1.0)'!E$49:N$49) ->  | D165: =+IF(B165>0,('Manufacturers''s Declaration'!$C$49*' Installation Package '!C165*3.6),0) ->  | E165: =+'Reference Test Data'!L62 -> 0 | G165: =+IF(B165>0,(('Reference Test Data'!L62/'Reference Test Data'!H62)*100),0) ->  | H165: =+IF(B165>0,(('Reference Test Data'!T62/'Reference Test Data'!H62)*100),0) ->  | I165: =+'Reference Test Data'!Q62 -> 0
B166: =+'Reference Test Data'!C100 -> 10 | C166: =+LOOKUP(B166,'REF_DATA(V1.0)'!E$48:N$48,'REF_DATA(V1.0)'!E$49:N$49) -> 24 | D166: =+IF(B166>0,('Manufacturers''s Declaration'!$C$49*' Installation Package '!C166*3.6),0) -> 0 | E166: =+'Reference Test Data'!L63 -> 0 | F166: 0 | G166: =+IF(B166>0,(('Reference Test Data'!L63/'Reference Test Data'!H63)*100),0) ->  | H166: =+IF(B166>0,(('Reference Test Data'!T63/'Reference Test Data'!H63)*100),0) ->  | I166: =+'Reference Test Data'!Q63 -> 0 | J166: 0 | K166: 0
B168: Table IP_R4C: Reference system: Reference test boiler | J168: Table IP_R4D: Target building system: Boiler
B169: Load | C169: Reference | D169: Boiler efficiency | E169: Electricity used | F169: Heat supplied | G169: Average | H169: Average | I169: Calculated | J169: Adjusted | K169: Heat supplied | L169: Boiler fuel | M169: Average | N169: Average | O169: Calculated | P169: Corrected
B170: Factor | C170: System boiler | D170: Ratio | E170: by | F170: by Ref boiler | G170: Boiler heat | H170: Boiler | I170: Power | J170: Boiler | K170: by boiler | L170: Consumption | M170: Boiler heat | N170: Boiler | O170: power | P170: Power
C171: Efficiency | D171: Measured/Declared | E171: Boiler system | G171: Ouptut | H171: Firing time | I171: Consumption | J171: Efficiency | M171: Output | N171: Firing time | O171: Consumption | P171: Consumption
B172: [%] | C172: [%] | D172: [Fraction] | E172: [MJ/24h] | F172: [MJ/24h] | G172: [kW] | H172: [h] | I172: [MJ/24h] | J172: [%] | K172: [MJ/24h] | L172: [MJ/24h] | M172: [kW] | N172: [h] | O172: [MJ/24h] | P172: [MJ/24h]
B173: =+'Reference Test Data'!B58 -> 100 | C173: =+IF(B173>0,(('Reference Test Data'!M58/'Reference Test Data'!I58)*100),0) ->  | D173: =+IF(B173>0,(C173/'Reference Test Data'!$F$19),0) ->  | E173: =+'Reference Test Data'!R58 -> 0 | F173: =+'Reference Test Data'!M58 -> 0 | G173: =(F173/(3.6*LOOKUP(B173,'REF_DATA(V1.0)'!$E$48:$N$48,'REF_DATA(V1.0)'!$E$49:$N$49))) -> 0 | H173: =IF(G173>'Reference Test Data'!$E$19,LOOKUP($B173,'REF_DATA(V1.0)'!$E$48:$N$48,'REF_DATA(V1.0)'!$E$49:$N$49),(G173/'Reference Test Data'!$E$19)*LOOKUP(B173,'REF_DATA(V1.0)'!$E$48:$N$48,'REF_DATA(V1.0)'!$E$49:$N$49)) ->  | I173: =+(H173*'Reference Test Data'!$I$19+(24-' Installation Package '!H173)*'Reference Test Data'!$J$19)*3.6/1000 ->  | J173: =+$H$13*D173 ->  | K173: =J161-K161 -> 0 | L173: =+IF(B173>0,(K173*100/J173),0) ->  | M173: =(K173/(3.6*LOOKUP(B173,'REF_DATA(V1.0)'!$E$48:$N$48,'REF_DATA(V1.0)'!$E$49:$N$49))) -> 0 | N173: =IF(M173>' Installation Package '!$H$11,LOOKUP($B173,'REF_DATA(V1.0)'!$E$48:$N$48,'REF_DATA(V1.0)'!$E$49:$N$49),(M173/' Installation Package '!$H$11)*LOOKUP($B173,'REF_DATA(V1.0)'!$E$48:$N$48,'REF_DATA(V1.0)'!$E$49:$N$49)) ->  | O173: =+(N173*' Installation Package '!$H$17+(24-' Installation Package '!N173)*' Installation Package '!$H$18)*3.6/1000 ->  | P173: =+(O173/I173)*E173 -> 
B174: =+'Reference Test Data'!B59 -> enter | C174: =+IF(B174>0,(('Reference Test Data'!M59/'Reference Test Data'!I59)*100),0) ->  | D174: =+IF(B174>0,(C174/'Reference Test Data'!$F$19),0) ->  | E174: =+'Reference Test Data'!R59 -> 0 | F174: =+'Reference Test Data'!M59 -> 0 | G174: =(F174/(3.6*LOOKUP(B174,'REF_DATA(V1.0)'!$E$48:$N$48,'REF_DATA(V1.0)'!$E$49:$N$49))) ->  | H174: =IF(G174>'Reference Test Data'!$E$19,LOOKUP($B174,'REF_DATA(V1.0)'!$E$48:$N$48,'REF_DATA(V1.0)'!$E$49:$N$49),(G174/'Reference Test Data'!$E$19)*LOOKUP(B174,'REF_DATA(V1.0)'!$E$48:$N$48,'REF_DATA(V1.0)'!$E$49:$N$49)) ->  | I174: =+(H174*'Reference Test Data'!$I$19+(24-' Installation Package '!H174)*'Reference Test Data'!$J$19)*3.6/1000 ->  | J174: =+$H$13*D174 ->  | M174: =(K174/(3.6*LOOKUP(B174,'REF_DATA(V1.0)'!$E$48:$N$48,'REF_DATA(V1.0)'!$E$49:$N$49))) ->  | N174: =IF(M174>' Installation Package '!$H$11,LOOKUP($B174,'REF_DATA(V1.0)'!$E$48:$N$48,'REF_DATA(V1.0)'!$E$49:$N$49),(M174/' Installation Package '!$H$11)*LOOKUP($B174,'REF_DATA(V1.0)'!$E$48:$N$48,'REF_DATA(V1.0)'!$E$49:$N$49)) ->  | O174: =+(N174*' Installation Package '!$H$17+(24-' Installation Package '!N174)*' Installation Package '!$H$18)*3.6/1000 ->  | P174: =+(O174/I174)*E174 -> 
B175: =+'Reference Test Data'!B60 -> enter | C175: =+IF(B175>0,(('Reference Test Data'!M60/'Reference Test Data'!I60)*100),0) ->  | D175: =+IF(B175>0,(C175/'Reference Test Data'!$F$19),0) ->  | E175: =+'Reference Test Data'!R60 -> 0 | F175: =+'Reference Test Data'!M60 -> 0 | G175: =(F175/(3.6*LOOKUP(B175,'REF_DATA(V1.0)'!$E$48:$N$48,'REF_DATA(V1.0)'!$E$49:$N$49))) ->  | H175: =IF(G175>'Reference Test Data'!$E$19,LOOKUP($B175,'REF_DATA(V1.0)'!$E$48:$N$48,'REF_DATA(V1.0)'!$E$49:$N$49),(G175/'Reference Test Data'!$E$19)*LOOKUP(B175,'REF_DATA(V1.0)'!$E$48:$N$48,'REF_DATA(V1.0)'!$E$49:$N$49)) ->  | I175: =+(H175*'Reference Test Data'!$I$19+(24-' Installation Package '!H175)*'Reference Test Data'!$J$19)*3.6/1000 ->  | M175: =(K175/(3.6*LOOKUP(B175,'REF_DATA(V1.0)'!$E$48:$N$48,'REF_DATA(V1.0)'!$E$49:$N$49))) ->  | N175: =IF(M175>' Installation Package '!$H$11,LOOKUP($B175,'REF_DATA(V1.0)'!$E$48:$N$48,'REF_DATA(V1.0)'!$E$49:$N$49),(M175/' Installation Package '!$H$11)*LOOKUP($B175,'REF_DATA(V1.0)'!$E$48:$N$48,'REF_DATA(V1.0)'!$E$49:$N$49)) ->  | O175: =+(N175*' Installation Package '!$H$17+(24-' Installation Package '!N175)*' Installation Package '!$H$18)*3.6/1000 -> 
B176: =+'Reference Test Data'!B61 -> 30 | C176: =+IF(B176>0,(('Reference Test Data'!M61/'Reference Test Data'!I61)*100),0) ->  | D176: =+IF(B176>0,(C176/'Reference Test Data'!$F$19),0) ->  | E176: =+'Reference Test Data'!R61 -> 0 | F176: =+'Reference Test Data'!M61 -> 0 | G176: =(F176/(3.6*LOOKUP(B176,'REF_DATA(V1.0)'!$E$48:$N$48,'REF_DATA(V1.0)'!$E$49:$N$49))) -> 0 | H176: =IF(G176>'Reference Test Data'!$E$19,LOOKUP($B176,'REF_DATA(V1.0)'!$E$48:$N$48,'REF_DATA(V1.0)'!$E$49:$N$49),(G176/'Reference Test Data'!$E$19)*LOOKUP(B176,'REF_DATA(V1.0)'!$E$48:$N$48,'REF_DATA(V1.0)'!$E$49:$N$49)) ->  | I176: =+(H176*'Reference Test Data'!$I$19+(24-' Installation Package '!H176)*'Reference Test Data'!$J$19)*3.6/1000 ->  | K176: 0 | M176: =(K176/(3.6*LOOKUP(B176,'REF_DATA(V1.0)'!$E$48:$N$48,'REF_DATA(V1.0)'!$E$49:$N$49))) -> 0 | N176: =IF(M176>' Installation Package '!$H$11,LOOKUP($B176,'REF_DATA(V1.0)'!$E$48:$N$48,'REF_DATA(V1.0)'!$E$49:$N$49),(M176/' Installation Package '!$H$11)*LOOKUP($B176,'REF_DATA(V1.0)'!$E$48:$N$48,'REF_DATA(V1.0)'!$E$49:$N$49)) ->  | O176: =+(N176*' Installation Package '!$H$17+(24-' Installation Package '!N176)*' Installation Package '!$H$18)*3.6/1000 -> 
B177: =+'Reference Test Data'!B62 -> enter | C177: =+IF(B177>0,(('Reference Test Data'!M62/'Reference Test Data'!I62)*100),0) ->  | D177: =+IF(B177>0,(C177/'Reference Test Data'!$F$19),0) ->  | E177: =+'Reference Test Data'!R62 -> 0 | F177: =+'Reference Test Data'!M62 -> 0 | G177: =(F177/(3.6*LOOKUP(B177,'REF_DATA(V1.0)'!$E$48:$N$48,'REF_DATA(V1.0)'!$E$49:$N$49))) ->  | H177: =IF(G177>'Reference Test Data'!$E$19,LOOKUP($B177,'REF_DATA(V1.0)'!$E$48:$N$48,'REF_DATA(V1.0)'!$E$49:$N$49),(G177/'Reference Test Data'!$E$19)*LOOKUP(B177,'REF_DATA(V1.0)'!$E$48:$N$48,'REF_DATA(V1.0)'!$E$49:$N$49)) ->  | I177: =+(H177*'Reference Test Data'!$I$19+(24-' Installation Package '!H177)*'Reference Test Data'!$J$19)*3.6/1000 ->  | M177: =(K177/(3.6*LOOKUP(B177,'REF_DATA(V1.0)'!$E$48:$N$48,'REF_DATA(V1.0)'!$E$49:$N$49))) ->  | N177: =IF(M177>' Installation Package '!$H$11,LOOKUP($B177,'REF_DATA(V1.0)'!$E$48:$N$48,'REF_DATA(V1.0)'!$E$49:$N$49),(M177/' Installation Package '!$H$11)*LOOKUP($B177,'REF_DATA(V1.0)'!$E$48:$N$48,'REF_DATA(V1.0)'!$E$49:$N$49)) ->  | O177: =+(N177*' Installation Package '!$H$17+(24-' Installation Package '!N177)*' Installation Package '!$H$18)*3.6/1000 -> 
B178: =+'Reference Test Data'!B63 -> 10 | C178: =+IF(B178>0,(('Reference Test Data'!M63/'Reference Test Data'!I63)*100),0) ->  | D178: =+IF(B178>0,(C178/'Reference Test Data'!$F$19),0) ->  | E178: =+'Reference Test Data'!R63 -> 0 | F178: =+'Reference Test Data'!M63 -> 0 | G178: =(F178/(3.6*LOOKUP(B178,'REF_DATA(V1.0)'!$E$48:$N$48,'REF_DATA(V1.0)'!$E$49:$N$49))) -> 0 | H178: =IF(G178>'Reference Test Data'!$E$19,LOOKUP($B178,'REF_DATA(V1.0)'!$E$48:$N$48,'REF_DATA(V1.0)'!$E$49:$N$49),(G178/'Reference Test Data'!$E$19)*LOOKUP(B178,'REF_DATA(V1.0)'!$E$48:$N$48,'REF_DATA(V1.0)'!$E$49:$N$49)) ->  | I178: =+(H178*'Reference Test Data'!$I$19+(24-' Installation Package '!H178)*'Reference Test Data'!$J$19)*3.6/1000 ->  | K178: 0 | M178: =(K178/(3.6*LOOKUP(B178,'REF_DATA(V1.0)'!$E$48:$N$48,'REF_DATA(V1.0)'!$E$49:$N$49))) -> 0 | N178: =IF(M178>' Installation Package '!$H$11,LOOKUP($B178,'REF_DATA(V1.0)'!$E$48:$N$48,'REF_DATA(V1.0)'!$E$49:$N$49),(M178/' Installation Package '!$H$11)*LOOKUP($B178,'REF_DATA(V1.0)'!$E$48:$N$48,'REF_DATA(V1.0)'!$E$49:$N$49)) ->  | O178: =+(N178*' Installation Package '!$H$17+(24-' Installation Package '!N178)*' Installation Package '!$H$18)*3.6/1000 -> 
B181: Table IP_R5: Standby performance calculation of the Add-on MCU in the building | K181: Add-on MCU type: | M181: =+'Manufacturers''s Declaration'!$E$24 -> RegPK | N181: =+'Manufacturers''s Declaration'!$F$24 -> With Ref boiler
B183: Table IP_R5A: Reference test system | M183: Table IP_R5B: System in the target building
B184: Load factor | C184: Heating system | D184: Heating system | E184: Fuel energy consumption | H184: Electric power consumption | K184: Power produced | L184: Standby power | M184: Standby power | N184: Fuel energy consumption | Q184: Electric power consumption | T184: Power produced
C185: Operating mode | D185: Operating regime | E185: Add-on MCU | F185: Reference Boiler | G185: Total | H185: Add-on MCU | I185: Ref Boiler | J185: Total | K185: Add-on MCU | L185: Consumption | M185: Consumption | N185: Add-on MCU | O185: Target Boiler | P185: Total | Q185: Add-on MCU | R185: Target Boiler | S185: Total | T185: Add-on MCU
B186: LF | E186: QF(LF)-AMCP | F186: QF(LF)-RB | G186: QF(LF)_TOT | H186: QPIN-AMCP(LF) | I186: QPIN-RB(LF) | J186: QPIN-TOT(LF) | K186: QPOUT-AMCP(LF) | L186: of Ref boiler | M186: of building boiler | N186: QF(LF)-AMCP | O186: QF(LF)-RB | P186: QF(LF)_TOT | Q186: QPIN-AMCP(LF) | R186: QPIN-RB(LF) | S186: QPIN-TOT(LF) | T186: QPOUT-AMCP(LF)
B187: [%] | C187: [ - ] | D187: [ - ] | E187: [MJ/24h] | F187: [MJ/24h] | G187: [MJ/24h] | H187: [MJ/24h] | I187: [MJ/24h] | J187: [MJ/24h] | K187: [MJ/24h] | L187: [W] | M187: [W] | N187: [MJ/24h] | O187: [MJ/24h] | P187: [MJ/24h] | Q187: [MJ/24h] | R187: [MJ/24h] | S187: [MJ/24h] | T187: [MJ/24h]
B188: =+'Reference Test Data'!B73 -> 0 | C188: =+'Reference Test Data'!C73 -> Standby | D188: =+'Reference Test Data'!D73 -> - | E188: =+'Reference Test Data'!H73 -> 0 | F188: =+'Reference Test Data'!I73 -> 0 | G188: =+'Reference Test Data'!J73 -> 0 | H188: =+'Reference Test Data'!Q73 -> 0 | I188: =+'Reference Test Data'!R73 -> 0 | J188: =+'Reference Test Data'!S73 -> 0 | K188: =+'Reference Test Data'!T73 -> 0 | L188: ='Reference Test Data'!J19 -> 0 | M188: =+H18 -> 0 | N188: =+E188 -> 0 | O188: =F188*'Reference Test Data'!F19/H13 ->  | P188: =+N188+O188 ->  | Q188: =+H188 -> 0 | R188: =+I188*(M188/L188) ->  | S188: =+Q188+R188 ->  | T188: =+K188 -> 0
B191: Table IP_R6: Hot water heating performance calculation of the Add-on MCU in the building | K191: Add-on MCU type: | M191: =+'Manufacturers''s Declaration'!$E$24 -> RegPK | N191: =+'Manufacturers''s Declaration'!$F$24 -> With Ref boiler
B193: Table IP_R6A: Reference test system
B194: HW heating | C194: HW Load | E194: DHW tapping | F194: Fuel energy consumption | H194: DHW heating load supplied by | K194: Average Draw-off temperatures | M194: Electric power consumption | P194: Power produced | Q194: Number of HW load tests | S194: =SUM(D198:D200) -> 3
B195: Test No | C195: demand | D195: Number of | E195: Cycle No | F195: Add-on MCU | G195: Reference Boiler | H195: Add-on MCU | I195: Reference Boiler | J195: Total | K195: Inlet CW | L195: Outlet HW | M195: Add-on MCU | N195: Ref Boiler | O195: Ref test system | P195: By Add-on MCU | T195: Units | U195: Minimum | V195: Maximum
C196: setting | D196: HW load tests | F196: QFHW-AMCP(N) | G196: QFHW-RB(N) | H196: QHW-AMCP(N) | I196: QHW-RB(N) | J196: QHW_TOT(N) | K196: TA-CW(N) | L196: TA-HW(N) | M196: QPIN-HW-AMCP(N) | N196: QPIN-HW-RB(N) | O196: QPIN-HW-TOT(N) | P196: QPOUT-HW(N) | Q196: Energy content of HW loads tested | T196: [MJ/24h] | U196: =+IF(S$194=1,J$198,IF(S$194=2,MIN(J$198:J$199),IF(S$194=3,MIN(J$198:J$200),0))) -> 0 | V196: =+IF(S$194=1,J$198,IF(S$194=2,MAX(J$198:J$199),IF(S$194=3,MAX(J$198:J$200),0))) -> 0
B197: [ - ] | C197: [MJ/24h] | D197: [ - ] | E197: [ - ] | F197: [MJ/24h] | G197: [MJ/24h] | H197: [MJ/24h] | I197: [MJ/24h] | J197: [MJ/24h] | K197: [oC] | L197: [oC] | M197: [MJ/24h] | N197: [MJ/24h] | O197: [MJ/24h] | P197: [MJ/24h] | Q197: HW energy supplied by Add-on MCU | T197: [MJ/24h] | U197: =+LOOKUP(U196,J198:J200,H198:H200) -> 0 | V197: =+LOOKUP(V196,J198:J200,H198:H200) -> 0
B198: =+'Reference Test Data'!B83 -> 1 | C198: =+'Reference Test Data'!F83 -> 21.042 | D198: =+IF(C198>0,1,0) -> 1 | E198: =+'Reference Test Data'!E83 -> 2 - M | F198: =+'Reference Test Data'!H83 -> 0 | G198: =+'Reference Test Data'!I83 -> 0 | H198: =+'Reference Test Data'!L83 -> 0 | I198: =+'Reference Test Data'!M83 -> 0 | J198: =+'Reference Test Data'!N83 -> 0 | K198: =+'Reference Test Data'!O83 -> 0 | L198: =+'Reference Test Data'!P83 -> 0 | M198: =+'Reference Test Data'!Q83 -> 0 | N198: =+'Reference Test Data'!R83 -> 0 | O198: =+'Reference Test Data'!S83 -> 0 | P198: =+'Reference Test Data'!T83 -> 0 | Q198: HW Heating energy fraction from Add-on MCU | T198: [Fraction] | U198: =+U197/U196 ->  | V198: =+V197/V196 ->  | W198: (assumed, please correct as necessary)
B199: =+'Reference Test Data'!B84 -> 2 | C199: =+'Reference Test Data'!F84 -> 41.958 | D199: =+IF(C199>0,1,0) -> 1 | E199: =+'Reference Test Data'!E84 -> 3 - L | F199: =+'Reference Test Data'!H84 -> 0 | G199: =+'Reference Test Data'!I84 -> 0 | H199: =+'Reference Test Data'!L84 -> 0 | I199: =+'Reference Test Data'!M84 -> 0 | J199: =+'Reference Test Data'!N84 -> 0 | K199: =+'Reference Test Data'!O84 -> 0 | L199: =+'Reference Test Data'!P84 -> 0 | M199: =+'Reference Test Data'!Q84 -> 0 | N199: =+'Reference Test Data'!R84 -> 0 | O199: =+'Reference Test Data'!S84 -> 0 | P199: =+'Reference Test Data'!T84 -> 0 | Q199: Add-on MCU utilisation for HW heating | T199: [Fraction] | U199: 1 | V199: 1 | W199: describes how much of the add-on MCU's declared output can actually be harnessed for producing hot water i.e, it could declare X but only in reality produce Y.
B200: =+'Reference Test Data'!B85 -> 3 | C200: =+'Reference Test Data'!F85 -> 68.652 | D200: 1 | E200: =+'Reference Test Data'!E85 -> 4 - XL | F200: =+'Reference Test Data'!H85 -> 0 | G200: =+'Reference Test Data'!I85 -> 0 | H200: =+'Reference Test Data'!L85 -> 0 | I200: =+'Reference Test Data'!M85 -> 0 | J200: =+'Reference Test Data'!N85 -> 0 | K200: =+'Reference Test Data'!O85 -> 0 | L200: =+'Reference Test Data'!P85 -> 0 | M200: =+'Reference Test Data'!Q85 -> 0 | N200: =+'Reference Test Data'!R85 -> 0 | O200: =+'Reference Test Data'!S85 -> 0 | P200: =+'Reference Test Data'!T85 -> 0 | Q200: Max heat available from Add-on MCU for HW heating | T200: [MJ/24h] | U200: =+U199*('Manufacturers''s Declaration'!F36*24*3.6) -> 0 | V200: =+V199*('Manufacturers''s Declaration'!F36*24*3.6) -> 0
B201: HW heating | C201: Boiler efficiency | E201: Boiler efficiency | Q201: Fuel used by Add-on MCU for HW heating | T201: [MJ/24h] | U201: =+LOOKUP(U196,J198:J200,F198:F200) -> 0 | V201: =+LOOKUP(V196,J198:J200,F198:F200) -> 0
B202: Test No | C202: Each test | D202: Average | E202: Ratio | Q202: Thermal efficiency of Add-on MCU (HW heating)) | T202: [%] | U202: =+U196*100/U201 ->  | V202: =+V196*100/V201 -> 
E203: Measured/Declared | Q203: Power generated by Add-on MCU (HW heating) | T203: [MJ/24h] | U203: =+LOOKUP(U197,H198:H200,P198:P200) -> 0 | V203: =+LOOKUP(V197,H198:H200,P198:P200) -> 0
B204: [ - ] | C204: [%] | D204: [%] | E204: [ - ] | Q204: Electrical efficiency of Add-on MCU (HW heating) | T204: [%] | U204: =+U203*100/U201 ->  | V204: =+V203*100/V201 -> 
B205: =+'Reference Test Data'!B83 -> 1 | C205: =+IF(I198>0,(100*I198/G198),0) -> 0 | D205: =+IF(SUM(C205:C207)=0, 0, SUM(C205:C207)/COUNTIF(C205:C207,"<>0")) -> 0 | E205: =+IF(D205>0,D205/'Reference Test Data'!H19,1) -> 1 | Q205: Electricity consumption of Add-on MCU | T205: [MJ/24h] | U205: =+LOOKUP(U197,H198:H200,M198:M200) -> 0 | V205: =+LOOKUP(V197,H198:H200,M198:M200) -> 0
B206: =+'Reference Test Data'!B84 -> 2 | C206: =+IF(I199>0,(100*I199/G199),0) -> 0 | Q206: HW energy supplied by Reference boiler | T206: [MJ/24h] | U206: =+LOOKUP(U196,J198:J200,I198:I200) -> 0 | V206: =+LOOKUP(V196,J198:J200,I198:I200) -> 0
B207: =+'Reference Test Data'!B85 -> 3 | C207: 0 | Q207: Electricity consumption of Reference boiler | T207: [MJ/24h] | U207: =+LOOKUP(U206,I198:I200,N198:N200) -> 0 | V207: =+LOOKUP(V206,I198:I200,N198:N200) -> 0
E208: *if boiler is not called upon to do any hot water production during the testing, then a hot water production boiler efficiency correction factor cannot be created. | Q208: HW load fraction slope | T208: [ - ] | U208: =+IF(V$196<>U$196,((V198-U198)/(V$196-U$196)),0) -> 0
E209: While it is preferred that a boiler correction factor for hot water production is available, in the absence of data we will generously assume it is 1 ( that there needs to be no correction). | Q209: Thermal efficiency slope | T209: [ - ] | U209: =+IF(V$196<>U$196,((V202-U202)/(V$196-U$196)),0) -> 0
Q210: Electrical efficiency slope | T210: [ - ] | U210: =+IF(V$197<>U$197,((V204-U204)/(V$197-U$197)),0) -> 0
Q211: Add-on MCU power consumption slope | T211: [ - ] | U211: =+IF(V$196<>U$196,((V205-U205)/(V$196-U$196)),0) -> 0
Q212: Boiler power consumption slope | T212: [ - ] | U212: =+(V207-U207)/(V196-U196) -> 
B214: Table IP_R6B: System in the target building
B215: Hot water consumption in the building | E215: Building Store | F215: Total energy | G215: HW Load from | H215: HW heating | I215: HW energy | J215: Thermal | K215: Electrical | L215: Fuel | M215: Fuel Consumption by boiler (MJ/24hr) | N215: Electricity | O215: Electricity consumption
C216: Energy content | E216: heat losses | F216: required for | G216: Add-on MCU | H216: supplied by | I216: supplied by | J216: Efficiency of | K216: Efficiency of | L216: Consumption | N216: Generated by | O216: Add-on MCU | P216: Boiler
B217: Profile | F217: HW heating | H217: Add-on MCU | I217: boiler | J217: Add-on MCU | K217: Add-on MCU | L217: Add-on MCU | N217: Add-on MCU
C218: [kWh/day] | D218: [MJ/day] | E218: [MJ/day] | F218: [MJ/day] | G218: [Fraction] | H218: [MJ/24h] | I218: [MJ/24h] | J218: [%] | K218: [%] | L218: [MJ/24h] | N218: [MJ/24h] | O218: [MJ/24h] | P218: [MJ/24h]
B219: =+H28 -> 1) EU_TC | C219: =+H32 -> 5.845 | D219: =+C219*3.6 -> 21.042 | E219: =(H26-'Reference Test Data'!N19)*3600*24/1000000 -> 0 | F219: =+D219+E219 -> 21.042 | G219: =+IF(F219<=U196,U198,IF(F219>=V196,V198,(U198+(F219-U196)*U208))) ->  | H219: =+IF((F219*G219)>U200,U200,(F219*G219)) ->  | I219: =+F219-H219 ->  | J219: =+IF(F219<=U196,U202,IF(F219>=V196,V202,(U202+(F219-U196)*U209))) ->  | K219: =+IF(H219<=U197,U204,IF(H219>=V197,V204,(U204+(H219-U197)*U210))) ->  | L219: =+F219*100/J219 ->  | M219: =IF(D205>0,I219/D205,0) -> 0 | N219: =+L219*K219/100 ->  | O219: =+IF(F219<=U196,U205,IF(F219>=V196,V205,(U205+(F219-U196)*U211))) -> 0 | P219: =+IF(F219<=U196,U207,IF(F219>=V196,V207,(U207+(F219-U196)*U212)))*$H$18/'Reference Test Data'!J19 -> 
E220: *add losses if external DHW store at installation site is worse than in reference case | P220: *as an approximation multiplied by the factor of the two boilers 'standby' energy uses to get target boiler electricity consumption - use 'standby' as boiler won't be firing for very long even in the largest water draw

Sheet Version
B2: AMENDMENTS SINCE PUBLICATION
B4: Date | C4: Version | D4: Notes
B5: 2018-11-12 | C5: 1 | D5: First issue.
B6: 2019-08-07 | C6: 1.1 | D6: Branding Update
